Workbook

Sheet Summary
A1: Core Curriculum Review Dashboards (2018-2019 to 2021-2022)
A5: Source: ST Student Enrollment Data; ST Section Data Info; TCC Core Curriculum; ODR
A6: Please Note: Data collected from Colleague, a dynamic system, may vary slightly when collected at a future time point.
A8: This report provides four dashboards showing enrollment and section offerings by term for courses in the Core Curriculum between 2018-2019 and 2021-2022.
A9: To use the dashboards, select the inputs you would like to see displayed on the charts or tables.
A11: Table 1 (Regular offerings and Enrollment) provides the enrollment and number of sections offered for each course by modality and campus. Also, shown on Table 1 are the avg. class sizes.
A14: Table 2 (District Availability) provides a view of the number of sections by campus. The table highlights cases were at least one section was active. Cases that were not highlighted signify courses not available at a campus.
A17: Table 3 (Modality Availability) provides a view of the number of sections by modality. The table highlights cases were at least one section was active. Cases that were not highlighted signify courses not available in a modality.
A20: Table 4 (Format Availability) provides a view of the number of sections by format. The table highlights cases were at least one section was active. Cases that were not highlighted signify courses not available in a format.
A23: Table 5 (Core Completion) provides a view of success rates and completion for degree-seeking FTIC cohorts.

Sheet Table1
E1: Campus | I1: Core Area | P1: Course Name | T1: Modality
A3: Campus | B3: District
A4: Core Area | B4: (010) Communication
A5: Course Name | B5: Total
A6: Modality | B6: Total
A8: Row Labels | B8: Number of Sections | C8: Enrollment | D8: Avg. Class Size
A9: 2018-2019 | B9: 1496 | C9: 30061 | D9: 59.12881319
A10: 2018FL | B10: 785 | C10: 16383 | D10: 20.87006369
A11: 2019SP | B11: 520 | C11: 10069 | D11: 19.36346154 | E11: =_xlfn.CONCAT("Displaying Data for Campus = ",B3,", Core Area = ",B4,", Course Name = ",B5,", and Modality = ",B6) -> Displaying Data for Campus = District, Core Area = (010) Communication, Course Name = Total, and Modality = Total
A12: 2019SU | B12: 191 | C12: 3609 | D12: 18.89528796
A13: 2019-2020 | B13: 1651 | C13: 30858 | D13: 57.19357813
A14: 2019FL | B14: 878 | C14: 16801 | D14: 19.13553531
A15: 2020SP | B15: 574 | C15: 9924 | D15: 17.28919861
A16: 2020SU | B16: 199 | C16: 4133 | D16: 20.76884422
A17: 2020-2021 | B17: 1460 | C17: 26746 | D17: 55.98231663
A18: 2020FL | B18: 808 | C18: 14926 | D18: 18.47277228
A19: 2021SP | B19: 486 | C19: 8495 | D19: 17.47942387
A20: 2021SU | B20: 166 | C20: 3325 | D20: 20.03012048
A21: 2021-2022 | B21: 1330 | C21: 23424 | D21: 51.78713697
A22: 2021FL | B22: 615 | C22: 11743 | D22: 19.09430894
A23: 2022SP | B23: 524 | C23: 8555 | D23: 16.32633588
A24: 2022SU | B24: 191 | C24: 3126 | D24: 16.36649215
A25: Grand Total | B25: 5937 | C25: 111089 | D25: 224.0918449

Sheet Sheet1 (hidden)
A1: Academic Year | B1: Term | C1: Campus | D1: Core Area | E1: Course Name | F1: Modality | G1: Sections | H1: Enrolls | I1: Avg. Class Size
A2: 2018-2019 | B2: 2018FL | C2: District | D2: (010) Communication | E2: Total | F2: Total | G2: 785 | H2: 16383 | I2: =H2/G2 -> 20.87006369
A3: 2018-2019 | B3: 2018FL | C3: District | D3: (010) Communication | E3: Total | F3: BL1 | G3: 34 | H3: 772 | I3: =H3/G3 -> 22.70588235
A4: 2018-2019 | B4: 2018FL | C4: District | D4: (010) Communication | E4: Total | F4: CD1 | G4: 64 | H4: 1687 | I4: 26.359375
A5: 2018-2019 | B5: 2018FL | C5: District | D5: (010) Communication | E5: Total | F5: HL1 | G5: 4 | H5: 97 | I5: 24.25
A6: 2018-2019 | B6: 2018FL | C6: District | D6: (010) Communication | E6: Total | F6: LE1 | G6: 683 | H6: 13827 | I6: 20.24450952
A7: 2018-2019 | B7: 2018FL | C7: District | D7: (010) Communication | E7: ENGL-1301 | F7: Total | G7: 535 | H7: 10714 | I7: 20.02616822
A8: 2018-2019 | B8: 2018FL | C8: District | D8: (010) Communication | E8: ENGL-1301 | F8: BL1 | G8: 26 | H8: 592 | I8: 22.76923077
A9: 2018-2019 | B9: 2018FL | C9: District | D9: (010) Communication | E9: ENGL-1301 | F9: CD1 | G9: 26 | H9: 692 | I9: 26.61538462
A10: 2018-2019 | B10: 2018FL | C10: District | D10: (010) Communication | E10: ENGL-1301 | F10: HL1 | G10: 2 | H10: 47 | I10: 23.5
A11: 2018-2019 | B11: 2018FL | C11: District | D11: (010) Communication | E11: ENGL-1301 | F11: LE1 | G11: 481 | H11: 9383 | I11: 19.50727651
A12: 2018-2019 | B12: 2018FL | C12: District | D12: (010) Communication | E12: SPCH-1311 | F12: Total | G12: 127 | H12: 2921 | I12: 23
A13: 2018-2019 | B13: 2018FL | C13: District | D13: (010) Communication | E13: SPCH-1311 | F13: BL1 | G13: 7 | H13: 157 | I13: 22.42857143
A14: 2018-2019 | B14: 2018FL | C14: District | D14: (010) Communication | E14: SPCH-1311 | F14: CD1 | G14: 18 | H14: 493 | I14: 27.38888889
A15: 2018-2019 | B15: 2018FL | C15: District | D15: (010) Communication | E15: SPCH-1311 | F15: LE1 | G15: 102 | H15: 2271 | I15: 22.26470588
A16: 2018-2019 | B16: 2018FL | C16: District | D16: (010) Communication | E16: SPCH-1315 | F16: Total | G16: 61 | H16: 1359 | I16: 22.27868852
A17: 2018-2019 | B17: 2018FL | C17: District | D17: (010) Communication | E17: SPCH-1315 | F17: BL1 | G17: 1 | H17: 23 | I17: 23
A18: 2018-2019 | B18: 2018FL | C18: District | D18: (010) Communication | E18: SPCH-1315 | F18: CD1 | G18: 6 | H18: 150 | I18: 25
A19: 2018-2019 | B19: 2018FL | C19: District | D19: (010) Communication | E19: SPCH-1315 | F19: LE1 | G19: 54 | H19: 1186 | I19: 21.96296296
A20: 2018-2019 | B20: 2018FL | C20: District | D20: (010) Communication | E20: SPCH-1321 | F20: Total | G20: 62 | H20: 1389 | I20: 22.40322581
A21: 2018-2019 | B21: 2018FL | C21: District | D21: (010) Communication | E21: SPCH-1321 | F21: CD1 | G21: 14 | H21: 352 | I21: 25.14285714
A22: 2018-2019 | B22: 2018FL | C22: District | D22: (010) Communication | E22: SPCH-1321 | F22: HL1 | G22: 2 | H22: 50 | I22: 25
A23: 2018-2019 | B23: 2018FL | C23: District | D23: (010) Communication | E23: SPCH-1321 | F23: LE1 | G23: 46 | H23: 987 | I23: 21.45652174
A24: 2018-2019 | B24: 2018FL | C24: District | D24: (020) Mathematics | E24: Total | F24: Total | G24: 509 | H24: 12262 | I24: 24.09037328
A25: 2018-2019 | B25: 2018FL | C25: District | D25: (020) Mathematics | E25: Total | F25: BL1 | G25: 11 | H25: 238 | I25: 21.63636364
A26: 2018-2019 | B26: 2018FL | C26: District | D26: (020) Mathematics | E26: Total | F26: CA1 | G26: 46 | H26: 951 | I26: 20.67391304
A27: 2018-2019 | B27: 2018FL | C27: District | D27: (020) Mathematics | E27: Total | F27: CD1 | G27: 53 | H27: 1368 | I27: 25.81132075
A28: 2018-2019 | B28: 2018FL | C28: District | D28: (020) Mathematics | E28: Total | F28: HL1 | G28: 10 | H28: 222 | I28: 22.2
A29: 2018-2019 | B29: 2018FL | C29: District | D29: (020) Mathematics | E29: Total | F29: LE1 | G29: 389 | H29: 9483 | I29: 24.37789203
A30: 2018-2019 | B30: 2018FL | C30: District | D30: (020) Mathematics | E30: MATH-1314 | F30: Total | G30: 218 | H30: 5372 | I30: 24.64220183
A31: 2018-2019 | B31: 2018FL | C31: District | D31: (020) Mathematics | E31: MATH-1314 | F31: BL1 | G31: 6 | H31: 120 | I31: 20
A32: 2018-2019 | B32: 2018FL | C32: District | D32: (020) Mathematics | E32: MATH-1314 | F32: CA1 | G32: 22 | H32: 465 | I32: 21.13636364
A33: 2018-2019 | B33: 2018FL | C33: District | D33: (020) Mathematics | E33: MATH-1314 | F33: CD1 | G33: 31 | H33: 789 | I33: 25.4516129
A34: 2018-2019 | B34: 2018FL | C34: District | D34: (020) Mathematics | E34: MATH-1314 | F34: HL1 | G34: 3 | H34: 64 | I34: 21.33333333
A35: 2018-2019 | B35: 2018FL | C35: District | D35: (020) Mathematics | E35: MATH-1314 | F35: LE1 | G35: 156 | H35: 3934 | I35: 25.21794872
A36: 2018-2019 | B36: 2018FL | C36: District | D36: (020) Mathematics | E36: MATH-1316 | F36: Total | G36: 11 | H36: 213 | I36: 19.36363636
A37: 2018-2019 | B37: 2018FL | C37: District | D37: (020) Mathematics | E37: MATH-1316 | F37: CD1 | G37: 3 | H37: 72 | I37: 24
A38: 2018-2019 | B38: 2018FL | C38: District | D38: (020) Mathematics | E38: MATH-1316 | F38: LE1 | G38: 8 | H38: 141 | I38: 17.625
A39: 2018-2019 | B39: 2018FL | C39: District | D39: (020) Mathematics | E39: MATH-1324 | F39: Total | G39: 28 | H39: 611 | I39: 21.82142857
A40: 2018-2019 | B40: 2018FL | C40: District | D40: (020) Mathematics | E40: MATH-1324 | F40: HL1 | G40: 2 | H40: 36 | I40: 18
A41: 2018-2019 | B41: 2018FL | C41: District | D41: (020) Mathematics | E41: MATH-1324 | F41: LE1 | G41: 26 | H41: 575 | I41: 22.11538462
A42: 2018-2019 | B42: 2018FL | C42: District | D42: (020) Mathematics | E42: MATH-1325 | F42: Total | G42: 22 | H42: 532 | I42: 24.18181818
A43: 2018-2019 | B43: 2018FL | C43: District | D43: (020) Mathematics | E43: MATH-1325 | F43: LE1 | G43: 22 | H43: 532 | I43: 24.18181818
A44: 2018-2019 | B44: 2018FL | C44: District | D44: (020) Mathematics | E44: MATH-1332 | F44: Total | G44: 53 | H44: 1285 | I44: 24.24528302
A45: 2018-2019 | B45: 2018FL | C45: District | D45: (020) Mathematics | E45: MATH-1332 | F45: BL1 | G45: 1 | H45: 20 | I45: 20
A46: 2018-2019 | B46: 2018FL | C46: District | D46: (020) Mathematics | E46: MATH-1332 | F46: CA1 | G46: 4 | H46: 72 | I46: 18
A47: 2018-2019 | B47: 2018FL | C47: District | D47: (020) Mathematics | E47: MATH-1332 | F47: CD1 | G47: 7 | H47: 195 | I47: 27.85714286
A48: 2018-2019 | B48: 2018FL | C48: District | D48: (020) Mathematics | E48: MATH-1332 | F48: HL1 | G48: 2 | H48: 47 | I48: 23.5
A49: 2018-2019 | B49: 2018FL | C49: District | D49: (020) Mathematics | E49: MATH-1332 | F49: LE1 | G49: 39 | H49: 951 | I49: 24.38461538
A50: 2018-2019 | B50: 2018FL | C50: District | D50: (020) Mathematics | E50: MATH-1342 | F50: Total | G50: 117 | H50: 2842 | I50: 24.29059829
A51: 2018-2019 | B51: 2018FL | C51: District | D51: (020) Mathematics | E51: MATH-1342 | F51: BL1 | G51: 2 | H51: 55 | I51: 27.5
A52: 2018-2019 | B52: 2018FL | C52: District | D52: (020) Mathematics | E52: MATH-1342 | F52: CA1 | G52: 20 | H52: 414 | I52: 20.7
A53: 2018-2019 | B53: 2018FL | C53: District | D53: (020) Mathematics | E53: MATH-1342 | F53: CD1 | G53: 12 | H53: 312 | I53: 26
A54: 2018-2019 | B54: 2018FL | C54: District | D54: (020) Mathematics | E54: MATH-1342 | F54: HL1 | G54: 3 | H54: 75 | I54: 25
A55: 2018-2019 | B55: 2018FL | C55: District | D55: (020) Mathematics | E55: MATH-1342 | F55: LE1 | G55: 80 | H55: 1986 | I55: 24.825
A56: 2018-2019 | B56: 2018FL | C56: District | D56: (020) Mathematics | E56: MATH-2412 | F56: Total | G56: 34 | H56: 780 | I56: 22.94117647
A57: 2018-2019 | B57: 2018FL | C57: District | D57: (020) Mathematics | E57: MATH-2412 | F57: BL1 | G57: 2 | H57: 43 | I57: 21.5
A58: 2018-2019 | B58: 2018FL | C58: District | D58: (020) Mathematics | E58: MATH-2412 | F58: LE1 | G58: 32 | H58: 737 | I58: 23.03125
A59: 2018-2019 | B59: 2018FL | C59: District | D59: (020) Mathematics | E59: MATH-2413 | F59: Total | G59: 26 | H59: 627 | I59: 24.11538462
A60: 2018-2019 | B60: 2018FL | C60: District | D60: (020) Mathematics | E60: MATH-2413 | F60: LE1 | G60: 26 | H60: 627 | I60: 24.11538462
A61: 2018-2019 | B61: 2018FL | C61: District | D61: (030) Life and Physical Sciences | E61: Total | F61: Total | G61: 554 | H61: 11561 | I61: 20.86823105
A62: 2018-2019 | B62: 2018FL | C62: District | D62: (030) Life and Physical Sciences | E62: Total | F62: BL1 | G62: 50 | H62: 1039 | I62: 20.78
A63: 2018-2019 | B63: 2018FL | C63: District | D63: (030) Life and Physical Sciences | E63: Total | F63: CD1 | G63: 35 | H63: 826 | I63: 23.6
A64: 2018-2019 | B64: 2018FL | C64: District | D64: (030) Life and Physical Sciences | E64: Total | F64: HL1 | G64: 3 | H64: 68 | I64: 22.66666667
A65: 2018-2019 | B65: 2018FL | C65: District | D65: (030) Life and Physical Sciences | E65: Total | F65: LE1 | G65: 466 | H65: 9628 | I65: 20.66094421
A66: 2018-2019 | B66: 2018FL | C66: District | D66: (030) Life and Physical Sciences | E66: BIOL-1406 | F66: Total | G66: 56 | H66: 1055 | I66: 18.83928571
A67: 2018-2019 | B67: 2018FL | C67: District | D67: (030) Life and Physical Sciences | E67: BIOL-1406 | F67: CD1 | G67: 3 | H67: 52 | I67: =H67/G67 -> 17.33333333
A68: 2018-2019 | B68: 2018FL | C68: District | D68: (030) Life and Physical Sciences | E68: BIOL-1406 | F68: LE1 | G68: 53 | H68: 1003 | I68: 18.9245283
A69: 2018-2019 | B69: 2018FL | C69: District | D69: (030) Life and Physical Sciences | E69: BIOL-1407 | F69: Total | G69: 8 | H69: 161 | I69: 20.125
A70: 2018-2019 | B70: 2018FL | C70: District | D70: (030) Life and Physical Sciences | E70: BIOL-1407 | F70: CD1 | G70: 1 | H70: 22 | I70: 22
A71: 2018-2019 | B71: 2018FL | C71: District | D71: (030) Life and Physical Sciences | E71: BIOL-1407 | F71: LE1 | G71: 7 | H71: 139 | I71: 19.85714286
A72: 2018-2019 | B72: 2018FL | C72: District | D72: (030) Life and Physical Sciences | E72: BIOL-1408 | F72: Total | G72: 76 | H72: 1701 | I72: 22.38157895
A73: 2018-2019 | B73: 2018FL | C73: District | D73: (030) Life and Physical Sciences | E73: BIOL-1408 | F73: BL1 | G73: 6 | H73: 133 | I73: 22.16666667
A74: 2018-2019 | B74: 2018FL | C74: District | D74: (030) Life and Physical Sciences | E74: BIOL-1408 | F74: CD1 | G74: 9 | H74: 232 | I74: 25.77777778
A75: 2018-2019 | B75: 2018FL | C75: District | D75: (030) Life and Physical Sciences | E75: BIOL-1408 | F75: HL1 | G75: 2 | H75: 44 | I75: 22
A76: 2018-2019 | B76: 2018FL | C76: District | D76: (030) Life and Physical Sciences | E76: BIOL-1408 | F76: LE1 | G76: 59 | H76: 1292 | I76: 21.89830508
A77: 2018-2019 | B77: 2018FL | C77: District | D77: (030) Life and Physical Sciences | E77: BIOL-1409 | F77: Total | G77: 25 | H77: 536 | I77: 21.44
A78: 2018-2019 | B78: 2018FL | C78: District | D78: (030) Life and Physical Sciences | E78: BIOL-1409 | F78: BL1 | G78: 4 | H78: 85 | I78: 21.25
A79: 2018-2019 | B79: 2018FL | C79: District | D79: (030) Life and Physical Sciences | E79: BIOL-1409 | F79: CD1 | G79: 7 | H79: 165 | I79: 23.57142857
A80: 2018-2019 | B80: 2018FL | C80: District | D80: (030) Life and Physical Sciences | E80: BIOL-1409 | F80: HL1 | G80: 1 | H80: 24 | I80: 24
A81: 2018-2019 | B81: 2018FL | C81: District | D81: (030) Life and Physical Sciences | E81: BIOL-1409 | F81: LE1 | G81: 13 | H81: 262 | I81: 20.15384615
A82: 2018-2019 | B82: 2018FL | C82: District | D82: (030) Life and Physical Sciences | E82: BIOL-2401 | F82: Total | G82: 112 | H82: 2451 | I82: 21.88392857
A83: 2018-2019 | B83: 2018FL | C83: District | D83: (030) Life and Physical Sciences | E83: BIOL-2401 | F83: BL1 | G83: 6 | H83: 124 | I83: 20.66666667
A84: 2018-2019 | B84: 2018FL | C84: District | D84: (030) Life and Physical Sciences | E84: BIOL-2401 | F84: CD1 | G84: 3 | H84: 61 | I84: 20.33333333
A85: 2018-2019 | B85: 2018FL | C85: District | D85: (030) Life and Physical Sciences | E85: BIOL-2401 | F85: LE1 | G85: 103 | H85: 2266 | I85: 22
A86: 2018-2019 | B86: 2018FL | C86: District | D86: (030) Life and Physical Sciences | E86: BIOL-2402 | F86: Total | G86: 45 | H86: 920 | I86: 20.44444444
A87: 2018-2019 | B87: 2018FL | C87: District | D87: (030) Life and Physical Sciences | E87: BIOL-2402 | F87: BL1 | G87: 8 | H87: 144 | I87: 18
A88: 2018-2019 | B88: 2018FL | C88: District | D88: (030) Life and Physical Sciences | E88: BIOL-2402 | F88: LE1 | G88: 37 | H88: 776 | I88: 20.97297297
A89: 2018-2019 | B89: 2018FL | C89: District | D89: (030) Life and Physical Sciences | E89: BIOL-2421 | F89: Total | G89: 4 | H89: 71 | I89: 17.75
A90: 2018-2019 | B90: 2018FL | C90: District | D90: (030) Life and Physical Sciences | E90: BIOL-2421 | F90: BL1 | G90: 1 | H90: 15 | I90: 15
A91: 2018-2019 | B91: 2018FL | C91: District | D91: (030) Life and Physical Sciences | E91: BIOL-2421 | F91: LE1 | G91: 3 | H91: 56 | I91: 18.66666667
A92: 2018-2019 | B92: 2018FL | C92: District | D92: (030) Life and Physical Sciences | E92: CHEM-1405 | F92: Total | G92: 15 | H92: 290 | I92: 19.33333333
A93: 2018-2019 | B93: 2018FL | C93: District | D93: (030) Life and Physical Sciences | E93: CHEM-1405 | F93: LE1 | G93: 15 | H93: 290 | I93: 19.33333333
A94: 2018-2019 | B94: 2018FL | C94: District | D94: (030) Life and Physical Sciences | E94: CHEM-1411 | F94: Total | G94: 41 | H94: 891 | I94: 21.73170732
A95: 2018-2019 | B95: 2018FL | C95: District | D95: (030) Life and Physical Sciences | E95: CHEM-1411 | F95: BL1 | G95: 1 | H95: 24 | I95: 24
A96: 2018-2019 | B96: 2018FL | C96: District | D96: (030) Life and Physical Sciences | E96: CHEM-1411 | F96: LE1 | G96: 40 | H96: 867 | I96: 21.675
A97: 2018-2019 | B97: 2018FL | C97: District | D97: (030) Life and Physical Sciences | E97: CHEM-1412 | F97: Total | G97: 13 | H97: 215 | I97: 16.53846154
A98: 2018-2019 | B98: 2018FL | C98: District | D98: (030) Life and Physical Sciences | E98: CHEM-1412 | F98: CD1 | G98: 1 | H98: 11 | I98: 11
A99: 2018-2019 | B99: 2018FL | C99: District | D99: (030) Life and Physical Sciences | E99: CHEM-1412 | F99: LE1 | G99: 12 | H99: 204 | I99: 17
A100: 2018-2019 | B100: 2018FL | C100: District | D100: (030) Life and Physical Sciences | E100: CHEM-2423 | F100: Total | G100: 10 | H100: 158 | I100: 15.8
A101: 2018-2019 | B101: 2018FL | C101: District | D101: (030) Life and Physical Sciences | E101: CHEM-2423 | F101: BL1 | G101: 1 | H101: 13 | I101: 13
A102: 2018-2019 | B102: 2018FL | C102: District | D102: (030) Life and Physical Sciences | E102: CHEM-2423 | F102: LE1 | G102: 9 | H102: 145 | I102: 16.11111111
A103: 2018-2019 | B103: 2018FL | C103: District | D103: (030) Life and Physical Sciences | E103: CHEM-2425 | F103: Total | G103: 4 | H103: 52 | I103: 13
A104: 2018-2019 | B104: 2018FL | C104: District | D104: (030) Life and Physical Sciences | E104: CHEM-2425 | F104: LE1 | G104: 4 | H104: 52 | I104: 13
A105: 2018-2019 | B105: 2018FL | C105: District | D105: (030) Life and Physical Sciences | E105: GEOL-1401 | F105: Total | G105: 36 | H105: 781 | I105: 21.69444444
A106: 2018-2019 | B106: 2018FL | C106: District | D106: (030) Life and Physical Sciences | E106: GEOL-1401 | F106: BL1 | G106: 13 | H106: 272 | I106: 20.92307692
A107: 2018-2019 | B107: 2018FL | C107: District | D107: (030) Life and Physical Sciences | E107: GEOL-1401 | F107: LE1 | G107: 23 | H107: 509 | I107: 22.13043478
A108: 2018-2019 | B108: 2018FL | C108: District | D108: (030) Life and Physical Sciences | E108: GEOL-1402 | F108: Total | G108: 2 | H108: 48 | I108: 24
A109: 2018-2019 | B109: 2018FL | C109: District | D109: (030) Life and Physical Sciences | E109: GEOL-1402 | F109: LE1 | G109: 2 | H109: 48 | I109: 24
A110: 2018-2019 | B110: 2018FL | C110: District | D110: (030) Life and Physical Sciences | E110: GEOL-1403 | F110: Total | G110: 40 | H110: 902 | I110: 22.55
A111: 2018-2019 | B111: 2018FL | C111: District | D111: (030) Life and Physical Sciences | E111: GEOL-1403 | F111: BL1 | G111: 9 | H111: 208 | I111: 23.11111111
A112: 2018-2019 | B112: 2018FL | C112: District | D112: (030) Life and Physical Sciences | E112: GEOL-1403 | F112: CD1 | G112: 8 | H112: 216 | I112: 27
A113: 2018-2019 | B113: 2018FL | C113: District | D113: (030) Life and Physical Sciences | E113: GEOL-1403 | F113: LE1 | G113: 23 | H113: 478 | I113: 20.7826087
A114: 2018-2019 | B114: 2018FL | C114: District | D114: (030) Life and Physical Sciences | E114: GEOL-1404 | F114: Total | G114: 9 | H114: 177 | I114: 19.66666667
A115: 2018-2019 | B115: 2018FL | C115: District | D115: (030) Life and Physical Sciences | E115: GEOL-1404 | F115: BL1 | G115: 1 | H115: 21 | I115: 21
A116: 2018-2019 | B116: 2018FL | C116: District | D116: (030) Life and Physical Sciences | E116: GEOL-1404 | F116: CD1 | G116: 3 | H116: 67 | I116: 22.33333333
A117: 2018-2019 | B117: 2018FL | C117: District | D117: (030) Life and Physical Sciences | E117: GEOL-1404 | F117: LE1 | G117: 5 | H117: 89 | I117: 17.8
A118: 2018-2019 | B118: 2018FL | C118: District | D118: (030) Life and Physical Sciences | E118: GEOL-1405 | F118: Total | G118: 3 | H118: 63 | I118: 21
A119: 2018-2019 | B119: 2018FL | C119: District | D119: (030) Life and Physical Sciences | E119: GEOL-1405 | F119: LE1 | G119: 3 | H119: 63 | I119: 21
A120: 2018-2019 | B120: 2018FL | C120: District | D120: (030) Life and Physical Sciences | E120: GEOL-1445 | F120: Total | G120: 6 | H120: 133 | I120: 22.16666667
A121: 2018-2019 | B121: 2018FL | C121: District | D121: (030) Life and Physical Sciences | E121: GEOL-1445 | F121: LE1 | G121: 6 | H121: 133 | I121: 22.16666667
A122: 2018-2019 | B122: 2018FL | C122: District | D122: (030) Life and Physical Sciences | E122: GEOL-1447 | F122: Total | G122: 1 | H122: 24 | I122: 24
A123: 2018-2019 | B123: 2018FL | C123: District | D123: (030) Life and Physical Sciences | E123: GEOL-1447 | F123: LE1 | G123: 1 | H123: 24 | I123: 24
A124: 2018-2019 | B124: 2018FL | C124: District | D124: (030) Life and Physical Sciences | E124: PHYS-1401 | F124: Total | G124: 13 | H124: 216 | I124: 16.61538462
A125: 2018-2019 | B125: 2018FL | C125: District | D125: (030) Life and Physical Sciences | E125: PHYS-1401 | F125: LE1 | G125: 13 | H125: 216 | I125: 16.61538462
A126: 2018-2019 | B126: 2018FL | C126: District | D126: (030) Life and Physical Sciences | E126: PHYS-1402 | F126: Total | G126: 3 | H126: 59 | I126: 19.66666667
A127: 2018-2019 | B127: 2018FL | C127: District | D127: (030) Life and Physical Sciences | E127: PHYS-1402 | F127: LE1 | G127: 3 | H127: 59 | I127: 19.66666667
A128: 2018-2019 | B128: 2018FL | C128: District | D128: (030) Life and Physical Sciences | E128: PHYS-1403 | F128: Total | G128: 6 | H128: 114 | I128: 19
A129: 2018-2019 | B129: 2018FL | C129: District | D129: (030) Life and Physical Sciences | E129: PHYS-1403 | F129: LE1 | G129: 6 | H129: 114 | I129: 19
A130: 2018-2019 | B130: 2018FL | C130: District | D130: (030) Life and Physical Sciences | E130: PHYS-1404 | F130: Total | G130: 4 | H130: 74 | I130: 18.5
A131: 2018-2019 | B131: 2018FL | C131: District | D131: (030) Life and Physical Sciences | E131: PHYS-1404 | F131: LE1 | G131: 4 | H131: 74 | I131: =H131/G131 -> 18.5
A132: 2018-2019 | B132: 2018FL | C132: District | D132: (030) Life and Physical Sciences | E132: PHYS-1405 | F132: Total | G132: 1 | H132: 16 | I132: 16
A133: 2018-2019 | B133: 2018FL | C133: District | D133: (030) Life and Physical Sciences | E133: PHYS-1405 | F133: LE1 | G133: 1 | H133: 16 | I133: 16
A134: 2018-2019 | B134: 2018FL | C134: District | D134: (030) Life and Physical Sciences | E134: PHYS-1415 | F134: Total | G134: 7 | H134: 134 | I134: 19.14285714
A135: 2018-2019 | B135: 2018FL | C135: District | D135: (030) Life and Physical Sciences | E135: PHYS-1415 | F135: LE1 | G135: 7 | H135: 134 | I135: 19.14285714
A136: 2018-2019 | B136: 2018FL | C136: District | D136: (030) Life and Physical Sciences | E136: PHYS-2425 | F136: Total | G136: 10 | H136: 236 | I136: 23.6
A137: 2018-2019 | B137: 2018FL | C137: District | D137: (030) Life and Physical Sciences | E137: PHYS-2425 | F137: LE1 | G137: 10 | H137: 236 | I137: 23.6
A138: 2018-2019 | B138: 2018FL | C138: District | D138: (030) Life and Physical Sciences | E138: PHYS-2426 | F138: Total | G138: 4 | H138: 83 | I138: 20.75
A139: 2018-2019 | B139: 2018FL | C139: District | D139: (030) Life and Physical Sciences | E139: PHYS-2426 | F139: LE1 | G139: 4 | H139: 83 | I139: 20.75
A140: 2018-2019 | B140: 2018FL | C140: District | D140: (040) Language, Culture, and Philosophy | E140: Total | F140: Total | G140: 289 | H140: 6416 | I140: 22.20069204
A141: 2018-2019 | B141: 2018FL | C141: District | D141: (040) Language, Culture, and Philosophy | E141: Total | F141: BL1 | G141: 8 | H141: 152 | I141: 19
A142: 2018-2019 | B142: 2018FL | C142: District | D142: (040) Language, Culture, and Philosophy | E142: Total | F142: CD1 | G142: 47 | H142: 1154 | I142: 24.55319149
A143: 2018-2019 | B143: 2018FL | C143: District | D143: (040) Language, Culture, and Philosophy | E143: Total | F143: HL1 | G143: 3 | H143: 60 | I143: 20
A144: 2018-2019 | B144: 2018FL | C144: District | D144: (040) Language, Culture, and Philosophy | E144: Total | F144: LE1 | G144: 231 | H144: 5050 | I144: 21.86147186
A145: 2018-2019 | B145: 2018FL | C145: District | D145: (040) Language, Culture, and Philosophy | E145: ENGL-2322 | F145: Total | G145: 58 | H145: 1168 | I145: 20.13793103
A146: 2018-2019 | B146: 2018FL | C146: District | D146: (040) Language, Culture, and Philosophy | E146: ENGL-2322 | F146: CD1 | G146: 3 | H146: 55 | I146: 18.33333333
A147: 2018-2019 | B147: 2018FL | C147: District | D147: (040) Language, Culture, and Philosophy | E147: ENGL-2322 | F147: LE1 | G147: 55 | H147: 1113 | I147: 20.23636364
A148: 2018-2019 | B148: 2018FL | C148: District | D148: (040) Language, Culture, and Philosophy | E148: ENGL-2323 | F148: Total | G148: 10 | H148: 148 | I148: 14.8
A149: 2018-2019 | B149: 2018FL | C149: District | D149: (040) Language, Culture, and Philosophy | E149: ENGL-2323 | F149: CD1 | G149: 4 | H149: 54 | I149: 13.5
A150: 2018-2019 | B150: 2018FL | C150: District | D150: (040) Language, Culture, and Philosophy | E150: ENGL-2323 | F150: LE1 | G150: 6 | H150: 94 | I150: 15.66666667
A151: 2018-2019 | B151: 2018FL | C151: District | D151: (040) Language, Culture, and Philosophy | E151: ENGL-2327 | F151: Total | G151: 17 | H151: 344 | I151: 20.23529412
A152: 2018-2019 | B152: 2018FL | C152: District | D152: (040) Language, Culture, and Philosophy | E152: ENGL-2327 | F152: BL1 | G152: 2 | H152: 37 | I152: 18.5
A153: 2018-2019 | B153: 2018FL | C153: District | D153: (040) Language, Culture, and Philosophy | E153: ENGL-2327 | F153: CD1 | G153: 5 | H153: 102 | I153: 20.4
A154: 2018-2019 | B154: 2018FL | C154: District | D154: (040) Language, Culture, and Philosophy | E154: ENGL-2327 | F154: LE1 | G154: 10 | H154: 205 | I154: 20.5
A155: 2018-2019 | B155: 2018FL | C155: District | D155: (040) Language, Culture, and Philosophy | E155: ENGL-2328 | F155: Total | G155: 9 | H155: 173 | I155: 19.22222222
A156: 2018-2019 | B156: 2018FL | C156: District | D156: (040) Language, Culture, and Philosophy | E156: ENGL-2328 | F156: CD1 | G156: 4 | H156: 93 | I156: 23.25
A157: 2018-2019 | B157: 2018FL | C157: District | D157: (040) Language, Culture, and Philosophy | E157: ENGL-2328 | F157: LE1 | G157: 5 | H157: 80 | I157: 16
A158: 2018-2019 | B158: 2018FL | C158: District | D158: (040) Language, Culture, and Philosophy | E158: ENGL-2332 | F158: Total | G158: 10 | H158: 229 | I158: 22.9
A159: 2018-2019 | B159: 2018FL | C159: District | D159: (040) Language, Culture, and Philosophy | E159: ENGL-2332 | F159: CD1 | G159: 1 | H159: 27 | I159: 27
A160: 2018-2019 | B160: 2018FL | C160: District | D160: (040) Language, Culture, and Philosophy | E160: ENGL-2332 | F160: LE1 | G160: 9 | H160: 202 | I160: 22.44444444
A161: 2018-2019 | B161: 2018FL | C161: District | D161: (040) Language, Culture, and Philosophy | E161: ENGL-2333 | F161: Total | G161: 3 | H161: 51 | I161: 17
A162: 2018-2019 | B162: 2018FL | C162: District | D162: (040) Language, Culture, and Philosophy | E162: ENGL-2333 | F162: CD1 | G162: 2 | H162: 39 | I162: 19.5
A163: 2018-2019 | B163: 2018FL | C163: District | D163: (040) Language, Culture, and Philosophy | E163: ENGL-2333 | F163: LE1 | G163: 1 | H163: 12 | I163: 12
A164: 2018-2019 | B164: 2018FL | C164: District | D164: (040) Language, Culture, and Philosophy | E164: FREN-2311 | F164: Total | G164: 1 | H164: 17 | I164: 17
A165: 2018-2019 | B165: 2018FL | C165: District | D165: (040) Language, Culture, and Philosophy | E165: FREN-2311 | F165: LE1 | G165: 1 | H165: 17 | I165: 17
A166: 2018-2019 | B166: 2018FL | C166: District | D166: (040) Language, Culture, and Philosophy | E166: GERM-2311 | F166: Total | G166: 1 | H166: 13 | I166: 13
A167: 2018-2019 | B167: 2018FL | C167: District | D167: (040) Language, Culture, and Philosophy | E167: GERM-2311 | F167: LE1 | G167: 1 | H167: 13 | I167: 13
A168: 2018-2019 | B168: 2018FL | C168: District | D168: (040) Language, Culture, and Philosophy | E168: HIST-2311 | F168: Total | G168: 7 | H168: 199 | I168: 28.42857143
A169: 2018-2019 | B169: 2018FL | C169: District | D169: (040) Language, Culture, and Philosophy | E169: HIST-2311 | F169: CD1 | G169: 3 | H169: 85 | I169: 28.33333333
A170: 2018-2019 | B170: 2018FL | C170: District | D170: (040) Language, Culture, and Philosophy | E170: HIST-2311 | F170: LE1 | G170: 4 | H170: 114 | I170: 28.5
A171: 2018-2019 | B171: 2018FL | C171: District | D171: (040) Language, Culture, and Philosophy | E171: HIST-2312 | F171: Total | G171: 1 | H171: 15 | I171: 15
A172: 2018-2019 | B172: 2018FL | C172: District | D172: (040) Language, Culture, and Philosophy | E172: HIST-2312 | F172: LE1 | G172: 1 | H172: 15 | I172: 15
A173: 2018-2019 | B173: 2018FL | C173: District | D173: (040) Language, Culture, and Philosophy | E173: HIST-2321 | F173: Total | G173: 10 | H173: 257 | I173: 25.7
A174: 2018-2019 | B174: 2018FL | C174: District | D174: (040) Language, Culture, and Philosophy | E174: HIST-2321 | F174: CD1 | G174: 1 | H174: 27 | I174: 27
A175: 2018-2019 | B175: 2018FL | C175: District | D175: (040) Language, Culture, and Philosophy | E175: HIST-2321 | F175: LE1 | G175: 9 | H175: 230 | I175: 25.55555556
A176: 2018-2019 | B176: 2018FL | C176: District | D176: (040) Language, Culture, and Philosophy | E176: HIST-2322 | F176: Total | G176: 2 | H176: 37 | I176: 18.5
A177: 2018-2019 | B177: 2018FL | C177: District | D177: (040) Language, Culture, and Philosophy | E177: HIST-2322 | F177: CD1 | G177: 1 | H177: 27 | I177: 27
A178: 2018-2019 | B178: 2018FL | C178: District | D178: (040) Language, Culture, and Philosophy | E178: HIST-2322 | F178: LE1 | G178: 1 | H178: 10 | I178: 10
A179: 2018-2019 | B179: 2018FL | C179: District | D179: (040) Language, Culture, and Philosophy | E179: HUMA-1301 | F179: Total | G179: 25 | H179: 585 | I179: 23.4
A180: 2018-2019 | B180: 2018FL | C180: District | D180: (040) Language, Culture, and Philosophy | E180: HUMA-1301 | F180: BL1 | G180: 3 | H180: 65 | I180: 21.66666667
A181: 2018-2019 | B181: 2018FL | C181: District | D181: (040) Language, Culture, and Philosophy | E181: HUMA-1301 | F181: CD1 | G181: 5 | H181: 143 | I181: 28.6
A182: 2018-2019 | B182: 2018FL | C182: District | D182: (040) Language, Culture, and Philosophy | E182: HUMA-1301 | F182: HL1 | G182: 2 | H182: 36 | I182: 18
A183: 2018-2019 | B183: 2018FL | C183: District | D183: (040) Language, Culture, and Philosophy | E183: HUMA-1301 | F183: LE1 | G183: 15 | H183: 341 | I183: 22.73333333
A184: 2018-2019 | B184: 2018FL | C184: District | D184: (040) Language, Culture, and Philosophy | E184: PHIL-1301 | F184: Total | G184: 68 | H184: 1814 | I184: 26.67647059
A185: 2018-2019 | B185: 2018FL | C185: District | D185: (040) Language, Culture, and Philosophy | E185: PHIL-1301 | F185: BL1 | G185: 3 | H185: 50 | I185: 16.66666667
A186: 2018-2019 | B186: 2018FL | C186: District | D186: (040) Language, Culture, and Philosophy | E186: PHIL-1301 | F186: CD1 | G186: 7 | H186: 189 | I186: 27
A187: 2018-2019 | B187: 2018FL | C187: District | D187: (040) Language, Culture, and Philosophy | E187: PHIL-1301 | F187: HL1 | G187: 1 | H187: 24 | I187: 24
A188: 2018-2019 | B188: 2018FL | C188: District | D188: (040) Language, Culture, and Philosophy | E188: PHIL-1301 | F188: LE1 | G188: 57 | H188: 1551 | I188: 27.21052632
A189: 2018-2019 | B189: 2018FL | C189: District | D189: (040) Language, Culture, and Philosophy | E189: PHIL-1304 | F189: Total | G189: 23 | H189: 565 | I189: 24.56521739
A190: 2018-2019 | B190: 2018FL | C190: District | D190: (040) Language, Culture, and Philosophy | E190: PHIL-1304 | F190: CD1 | G190: 6 | H190: 173 | I190: 28.83333333
A191: 2018-2019 | B191: 2018FL | C191: District | D191: (040) Language, Culture, and Philosophy | E191: PHIL-1304 | F191: LE1 | G191: 17 | H191: 392 | I191: 23.05882353
A192: 2018-2019 | B192: 2018FL | C192: District | D192: (040) Language, Culture, and Philosophy | E192: PHIL-2306 | F192: Total | G192: 14 | H192: 277 | I192: 19.78571429
A193: 2018-2019 | B193: 2018FL | C193: District | D193: (040) Language, Culture, and Philosophy | E193: PHIL-2306 | F193: CD1 | G193: 2 | H193: 54 | I193: 27
A194: 2018-2019 | B194: 2018FL | C194: District | D194: (040) Language, Culture, and Philosophy | E194: PHIL-2306 | F194: LE1 | G194: 12 | H194: 223 | I194: 18.58333333
A195: 2018-2019 | B195: 2018FL | C195: District | D195: (040) Language, Culture, and Philosophy | E195: PHIL-2316 | F195: Total | G195: 1 | H195: 25 | I195: =H195/G195 -> 25
A196: 2018-2019 | B196: 2018FL | C196: District | D196: (040) Language, Culture, and Philosophy | E196: PHIL-2316 | F196: LE1 | G196: 1 | H196: 25 | I196: 25
A197: 2018-2019 | B197: 2018FL | C197: District | D197: (040) Language, Culture, and Philosophy | E197: SPAN-2311 | F197: Total | G197: 25 | H197: 421 | I197: 16.84
A198: 2018-2019 | B198: 2018FL | C198: District | D198: (040) Language, Culture, and Philosophy | E198: SPAN-2311 | F198: CD1 | G198: 2 | H198: 57 | I198: 28.5
A199: 2018-2019 | B199: 2018FL | C199: District | D199: (040) Language, Culture, and Philosophy | E199: SPAN-2311 | F199: LE1 | G199: 23 | H199: 364 | I199: 15.82608696
A200: 2018-2019 | B200: 2018FL | C200: District | D200: (040) Language, Culture, and Philosophy | E200: SPAN-2312 | F200: Total | G200: 4 | H200: 78 | I200: 19.5
... 4300 more rows

Sheet Table2
A1: Academic Year | B1: Term | C1: Campus | D1: Core Area | E1: Course Name | F1: Sections | G1: Enrolls | X1: Academic Year | Y1: 2021-2022
A2: 2018-2019 | B2: 2018FL | C2: CN | D2: (010) Communication | E2: ENGL-1301 | F2: 24 | G2: 668 | X2: Term | Y2: 2021FL
A3: 2018-2019 | B3: 2018FL | C3: CN | D3: (010) Communication | E3: SPCH-1311 | F3: 17 | G3: 472 | X3: Core Area | Y3: (010) Communication
A4: 2018-2019 | B4: 2018FL | C4: CN | D4: (010) Communication | E4: SPCH-1315 | F4: 5 | G4: 143
A5: 2018-2019 | B5: 2018FL | C5: CN | D5: (010) Communication | E5: SPCH-1321 | F5: 13 | G5: 345 | R5: Academic Year | T5: Core Area | X5: Number of Sections | Y5: Modality
A6: 2018-2019 | B6: 2018FL | C6: CN | D6: (020) Mathematics | E6: MATH-1314 | F6: 33 | G6: 828 | X6: Course Name | Y6: BL1 | Z6: CD1 | AA6: HL1 | AB6: LE1
A7: 2018-2019 | B7: 2018FL | C7: CN | D7: (020) Mathematics | E7: MATH-1316 | F7: 3 | G7: 72 | X7: ENGL-1301 | Y7: 44 | Z7: 68 | AA7: 2 | AB7: 706
A8: 2018-2019 | B8: 2018FL | C8: CN | D8: (020) Mathematics | E8: MATH-1324 | F8: 2 | G8: 36 | X8: SPCH-1311 | Y8: 2 | Z8: 48 | AA8: 4 | AB8: 154
A9: 2018-2019 | B9: 2018FL | C9: CN | D9: (020) Mathematics | E9: MATH-1332 | F9: 9 | G9: 242 | X9: SPCH-1315 | Y9: 4 | Z9: 10 | AA9: 4 | AB9: 86
A10: 2018-2019 | B10: 2018FL | C10: CN | D10: (020) Mathematics | E10: MATH-1342 | F10: 15 | G10: 387 | X10: SPCH-1321 | Y10: 0 | Z10: 22 | AA10: 2 | AB10: 74
A11: 2018-2019 | B11: 2018FL | C11: CN | D11: (030) Life and Physical Sciences | E11: BIOL-1406 | F11: 3 | G11: 52
A12: 2018-2019 | B12: 2018FL | C12: CN | D12: (030) Life and Physical Sciences | E12: BIOL-1407 | F12: 1 | G12: 22
A13: 2018-2019 | B13: 2018FL | C13: CN | D13: (030) Life and Physical Sciences | E13: BIOL-1408 | F13: 11 | G13: 276
A14: 2018-2019 | B14: 2018FL | C14: CN | D14: (030) Life and Physical Sciences | E14: BIOL-1409 | F14: 8 | G14: 189 | R14: Term
A15: 2018-2019 | B15: 2018FL | C15: CN | D15: (030) Life and Physical Sciences | E15: BIOL-2401 | F15: 3 | G15: 61
A16: 2018-2019 | B16: 2018FL | C16: CN | D16: (030) Life and Physical Sciences | E16: CHEM-1412 | F16: 1 | G16: 11
A17: 2018-2019 | B17: 2018FL | C17: CN | D17: (030) Life and Physical Sciences | E17: GEOL-1403 | F17: 8 | G17: 216
A18: 2018-2019 | B18: 2018FL | C18: CN | D18: (030) Life and Physical Sciences | E18: GEOL-1404 | F18: 3 | G18: 67
A19: 2018-2019 | B19: 2018FL | C19: CN | D19: (040) Language, Culture, and Philosophy | E19: ENGL-2322 | F19: 2 | G19: 43
A20: 2018-2019 | B20: 2018FL | C20: CN | D20: (040) Language, Culture, and Philosophy | E20: ENGL-2323 | F20: 2 | G20: 39
A21: 2018-2019 | B21: 2018FL | C21: CN | D21: (040) Language, Culture, and Philosophy | E21: ENGL-2327 | F21: 4 | G21: 95 | R21: To select multiple Terms at once, hold "Shift" or "Ctrl".
A22: 2018-2019 | B22: 2018FL | C22: CN | D22: (040) Language, Culture, and Philosophy | E22: ENGL-2328 | F22: 4 | G22: 93
A23: 2018-2019 | B23: 2018FL | C23: CN | D23: (040) Language, Culture, and Philosophy | E23: ENGL-2332 | F23: 1 | G23: 27
A24: 2018-2019 | B24: 2018FL | C24: CN | D24: (040) Language, Culture, and Philosophy | E24: ENGL-2333 | F24: 2 | G24: 39
A25: 2018-2019 | B25: 2018FL | C25: CN | D25: (040) Language, Culture, and Philosophy | E25: HIST-2311 | F25: 3 | G25: 85
A26: 2018-2019 | B26: 2018FL | C26: CN | D26: (040) Language, Culture, and Philosophy | E26: HIST-2321 | F26: 1 | G26: 27
A27: 2018-2019 | B27: 2018FL | C27: CN | D27: (040) Language, Culture, and Philosophy | E27: HIST-2322 | F27: 1 | G27: 27
A28: 2018-2019 | B28: 2018FL | C28: CN | D28: (040) Language, Culture, and Philosophy | E28: HUMA-1301 | F28: 7 | G28: 179
A29: 2018-2019 | B29: 2018FL | C29: CN | D29: (040) Language, Culture, and Philosophy | E29: PHIL-1301 | F29: 8 | G29: 213
A30: 2018-2019 | B30: 2018FL | C30: CN | D30: (040) Language, Culture, and Philosophy | E30: PHIL-1304 | F30: 6 | G30: 173
A31: 2018-2019 | B31: 2018FL | C31: CN | D31: (040) Language, Culture, and Philosophy | E31: PHIL-2306 | F31: 2 | G31: 54
A32: 2018-2019 | B32: 2018FL | C32: CN | D32: (040) Language, Culture, and Philosophy | E32: SPAN-2311 | F32: 2 | G32: 57
A33: 2018-2019 | B33: 2018FL | C33: CN | D33: (040) Language, Culture, and Philosophy | E33: SPAN-2312 | F33: 1 | G33: 29
A34: 2018-2019 | B34: 2018FL | C34: CN | D34: (050) Creative Arts | E34: ARTS-1301 | F34: 21 | G34: 582
A35: 2018-2019 | B35: 2018FL | C35: CN | D35: (050) Creative Arts | E35: DANC-2303 | F35: 6 | G35: 158
A36: 2018-2019 | B36: 2018FL | C36: CN | D36: (050) Creative Arts | E36: DRAM-1310 | F36: 9 | G36: 248
A37: 2018-2019 | B37: 2018FL | C37: CN | D37: (050) Creative Arts | E37: DRAM-2366 | F37: 4 | G37: 113
A38: 2018-2019 | B38: 2018FL | C38: CN | D38: (050) Creative Arts | E38: MUSI-1306 | F38: 18 | G38: 470
A39: 2018-2019 | B39: 2018FL | C39: CN | D39: (050) Creative Arts | E39: MUSI-1307 | F39: 1 | G39: 22
A40: 2018-2019 | B40: 2018FL | C40: CN | D40: (050) Creative Arts | E40: MUSI-1310 | F40: 1 | G40: 25
A41: 2018-2019 | B41: 2018FL | C41: CN | D41: (060) American History | E41: HIST-1301 | F41: 44 | G41: 1185
A42: 2018-2019 | B42: 2018FL | C42: CN | D42: (060) American History | E42: HIST-1302 | F42: 35 | G42: 956
A43: 2018-2019 | B43: 2018FL | C43: CN | D43: (060) American History | E43: HIST-2301 | F43: 7 | G43: 181
A44: 2018-2019 | B44: 2018FL | C44: CN | D44: (070) Government and Political Science | E44: GOVT-2305 | F44: 41 | G44: 1099
A45: 2018-2019 | B45: 2018FL | C45: CN | D45: (070) Government and Political Science | E45: GOVT-2306 | F45: 28 | G45: 796
A46: 2018-2019 | B46: 2018FL | C46: CN | D46: (080) Social and Behavioral Sciences | E46: ANTH-2346 | F46: 2 | G46: 54
A47: 2018-2019 | B47: 2018FL | C47: CN | D47: (080) Social and Behavioral Sciences | E47: ECON-2301 | F47: 12 | G47: 317
A48: 2018-2019 | B48: 2018FL | C48: CN | D48: (080) Social and Behavioral Sciences | E48: ECON-2302 | F48: 7 | G48: 195
A49: 2018-2019 | B49: 2018FL | C49: CN | D49: (080) Social and Behavioral Sciences | E49: GEOG-1301 | F49: 2 | G49: 56
A50: 2018-2019 | B50: 2018FL | C50: CN | D50: (080) Social and Behavioral Sciences | E50: GEOG-1302 | F50: 1 | G50: 29
A51: 2018-2019 | B51: 2018FL | C51: CN | D51: (080) Social and Behavioral Sciences | E51: GEOG-1303 | F51: 2 | G51: 56
A52: 2018-2019 | B52: 2018FL | C52: CN | D52: (080) Social and Behavioral Sciences | E52: PSYC-2301 | F52: 23 | G52: 647
A53: 2018-2019 | B53: 2018FL | C53: CN | D53: (080) Social and Behavioral Sciences | E53: SOCI-1301 | F53: 23 | G53: 637
A54: 2018-2019 | B54: 2018FL | C54: CN | D54: (090) Component Area Option | E54: ENGL-1302 | F54: 30 | G54: 837
A55: 2018-2019 | B55: 2018FL | C55: CN | D55: (090) Component Area Option | E55: ENGL-2311 | F55: 7 | G55: 188
A56: 2018-2019 | B56: 2018FL | C56: CN | D56: (090) Component Area Option | E56: KINE-1164 | F56: 29 | G56: 807
A57: 2018-2019 | B57: 2018FL | C57: NE | D57: (010) Communication | E57: ENGL-1301 | F57: 126 | G57: 2511
A58: 2018-2019 | B58: 2018FL | C58: NE | D58: (010) Communication | E58: SPCH-1311 | F58: 24 | G58: 540
A59: 2018-2019 | B59: 2018FL | C59: NE | D59: (010) Communication | E59: SPCH-1315 | F59: 10 | G59: 241
A60: 2018-2019 | B60: 2018FL | C60: NE | D60: (010) Communication | E60: SPCH-1321 | F60: 11 | G60: 254
A61: 2018-2019 | B61: 2018FL | C61: NE | D61: (020) Mathematics | E61: MATH-1314 | F61: 55 | G61: 1198
A62: 2018-2019 | B62: 2018FL | C62: NE | D62: (020) Mathematics | E62: MATH-1316 | F62: 3 | G62: 52
A63: 2018-2019 | B63: 2018FL | C63: NE | D63: (020) Mathematics | E63: MATH-1324 | F63: 8 | G63: 161
A64: 2018-2019 | B64: 2018FL | C64: NE | D64: (020) Mathematics | E64: MATH-1325 | F64: 6 | G64: 124
A65: 2018-2019 | B65: 2018FL | C65: NE | D65: (020) Mathematics | E65: MATH-1332 | F65: 13 | G65: 278
A66: 2018-2019 | B66: 2018FL | C66: NE | D66: (020) Mathematics | E66: MATH-1342 | F66: 19 | G66: 389
A67: 2018-2019 | B67: 2018FL | C67: NE | D67: (020) Mathematics | E67: MATH-2412 | F67: 9 | G67: 199
A68: 2018-2019 | B68: 2018FL | C68: NE | D68: (020) Mathematics | E68: MATH-2413 | F68: 5 | G68: 119
A69: 2018-2019 | B69: 2018FL | C69: NE | D69: (030) Life and Physical Sciences | E69: BIOL-1406 | F69: 14 | G69: 226
A70: 2018-2019 | B70: 2018FL | C70: NE | D70: (030) Life and Physical Sciences | E70: BIOL-1407 | F70: 3 | G70: 46
A71: 2018-2019 | B71: 2018FL | C71: NE | D71: (030) Life and Physical Sciences | E71: BIOL-1408 | F71: 19 | G71: 432
A72: 2018-2019 | B72: 2018FL | C72: NE | D72: (030) Life and Physical Sciences | E72: BIOL-1409 | F72: 7 | G72: 138
A73: 2018-2019 | B73: 2018FL | C73: NE | D73: (030) Life and Physical Sciences | E73: BIOL-2401 | F73: 32 | G73: 679
A74: 2018-2019 | B74: 2018FL | C74: NE | D74: (030) Life and Physical Sciences | E74: BIOL-2402 | F74: 13 | G74: 249
A75: 2018-2019 | B75: 2018FL | C75: NE | D75: (030) Life and Physical Sciences | E75: BIOL-2421 | F75: 1 | G75: 22
A76: 2018-2019 | B76: 2018FL | C76: NE | D76: (030) Life and Physical Sciences | E76: CHEM-1405 | F76: 4 | G76: 80
A77: 2018-2019 | B77: 2018FL | C77: NE | D77: (030) Life and Physical Sciences | E77: CHEM-1411 | F77: 11 | G77: 248
A78: 2018-2019 | B78: 2018FL | C78: NE | D78: (030) Life and Physical Sciences | E78: CHEM-1412 | F78: 2 | G78: 38
A79: 2018-2019 | B79: 2018FL | C79: NE | D79: (030) Life and Physical Sciences | E79: CHEM-2423 | F79: 3 | G79: 37
A80: 2018-2019 | B80: 2018FL | C80: NE | D80: (030) Life and Physical Sciences | E80: CHEM-2425 | F80: 2 | G80: 31
A81: 2018-2019 | B81: 2018FL | C81: NE | D81: (030) Life and Physical Sciences | E81: GEOL-1401 | F81: 3 | G81: 71
A82: 2018-2019 | B82: 2018FL | C82: NE | D82: (030) Life and Physical Sciences | E82: GEOL-1403 | F82: 8 | G82: 161
A83: 2018-2019 | B83: 2018FL | C83: NE | D83: (030) Life and Physical Sciences | E83: GEOL-1404 | F83: 1 | G83: 13
A84: 2018-2019 | B84: 2018FL | C84: NE | D84: (030) Life and Physical Sciences | E84: GEOL-1445 | F84: 1 | G84: 22
A85: 2018-2019 | B85: 2018FL | C85: NE | D85: (030) Life and Physical Sciences | E85: GEOL-1447 | F85: 1 | G85: 24
A86: 2018-2019 | B86: 2018FL | C86: NE | D86: (030) Life and Physical Sciences | E86: PHYS-1401 | F86: 3 | G86: 46
A87: 2018-2019 | B87: 2018FL | C87: NE | D87: (030) Life and Physical Sciences | E87: PHYS-1402 | F87: 1 | G87: 23
A88: 2018-2019 | B88: 2018FL | C88: NE | D88: (030) Life and Physical Sciences | E88: PHYS-1403 | F88: 3 | G88: 63
A89: 2018-2019 | B89: 2018FL | C89: NE | D89: (030) Life and Physical Sciences | E89: PHYS-1404 | F89: 2 | G89: 46
A90: 2018-2019 | B90: 2018FL | C90: NE | D90: (030) Life and Physical Sciences | E90: PHYS-1405 | F90: 1 | G90: 16
A91: 2018-2019 | B91: 2018FL | C91: NE | D91: (030) Life and Physical Sciences | E91: PHYS-1415 | F91: 2 | G91: 47
A92: 2018-2019 | B92: 2018FL | C92: NE | D92: (030) Life and Physical Sciences | E92: PHYS-2425 | F92: 3 | G92: 66
A93: 2018-2019 | B93: 2018FL | C93: NE | D93: (030) Life and Physical Sciences | E93: PHYS-2426 | F93: 1 | G93: 9
A94: 2018-2019 | B94: 2018FL | C94: NE | D94: (040) Language, Culture, and Philosophy | E94: ENGL-2322 | F94: 7 | G94: 152
A95: 2018-2019 | B95: 2018FL | C95: NE | D95: (040) Language, Culture, and Philosophy | E95: ENGL-2327 | F95: 3 | G95: 58
A96: 2018-2019 | B96: 2018FL | C96: NE | D96: (040) Language, Culture, and Philosophy | E96: ENGL-2328 | F96: 1 | G96: 26
A97: 2018-2019 | B97: 2018FL | C97: NE | D97: (040) Language, Culture, and Philosophy | E97: ENGL-2332 | F97: 1 | G97: 24
A98: 2018-2019 | B98: 2018FL | C98: NE | D98: (040) Language, Culture, and Philosophy | E98: FREN-2311 | F98: 1 | G98: 17
A99: 2018-2019 | B99: 2018FL | C99: NE | D99: (040) Language, Culture, and Philosophy | E99: GERM-2311 | F99: 1 | G99: 13
A100: 2018-2019 | B100: 2018FL | C100: NE | D100: (040) Language, Culture, and Philosophy | E100: HIST-2321 | F100: 1 | G100: 36
A101: 2018-2019 | B101: 2018FL | C101: NE | D101: (040) Language, Culture, and Philosophy | E101: HUMA-1301 | F101: 1 | G101: 31
A102: 2018-2019 | B102: 2018FL | C102: NE | D102: (040) Language, Culture, and Philosophy | E102: PHIL-1301 | F102: 16 | G102: 519
A103: 2018-2019 | B103: 2018FL | C103: NE | D103: (040) Language, Culture, and Philosophy | E103: PHIL-1304 | F103: 1 | G103: 28
A104: 2018-2019 | B104: 2018FL | C104: NE | D104: (040) Language, Culture, and Philosophy | E104: PHIL-2306 | F104: 2 | G104: 60
A105: 2018-2019 | B105: 2018FL | C105: NE | D105: (040) Language, Culture, and Philosophy | E105: PHIL-2316 | F105: 1 | G105: 25
A106: 2018-2019 | B106: 2018FL | C106: NE | D106: (040) Language, Culture, and Philosophy | E106: SPAN-2311 | F106: 4 | G106: 66
A107: 2018-2019 | B107: 2018FL | C107: NE | D107: (050) Creative Arts | E107: ARTS-1301 | F107: 15 | G107: 496
A108: 2018-2019 | B108: 2018FL | C108: NE | D108: (050) Creative Arts | E108: ARTS-1303 | F108: 2 | G108: 89
A109: 2018-2019 | B109: 2018FL | C109: NE | D109: (050) Creative Arts | E109: COMM-2366 | F109: 1 | G109: 29
A110: 2018-2019 | B110: 2018FL | C110: NE | D110: (050) Creative Arts | E110: DANC-2303 | F110: 5 | G110: 103
A111: 2018-2019 | B111: 2018FL | C111: NE | D111: (050) Creative Arts | E111: DRAM-1310 | F111: 9 | G111: 232
A112: 2018-2019 | B112: 2018FL | C112: NE | D112: (050) Creative Arts | E112: DRAM-2366 | F112: 2 | G112: 54
A113: 2018-2019 | B113: 2018FL | C113: NE | D113: (050) Creative Arts | E113: HUMA-1315 | F113: 1 | G113: 22
A114: 2018-2019 | B114: 2018FL | C114: NE | D114: (050) Creative Arts | E114: MUSI-1306 | F114: 16 | G114: 349
A115: 2018-2019 | B115: 2018FL | C115: NE | D115: (050) Creative Arts | E115: MUSI-1307 | F115: 1 | G115: 24
A116: 2018-2019 | B116: 2018FL | C116: NE | D116: (050) Creative Arts | E116: MUSI-1310 | F116: 3 | G116: 61
A117: 2018-2019 | B117: 2018FL | C117: NE | D117: (060) American History | E117: HIST-1301 | F117: 54 | G117: 1740
A118: 2018-2019 | B118: 2018FL | C118: NE | D118: (060) American History | E118: HIST-1302 | F118: 19 | G118: 573
A119: 2018-2019 | B119: 2018FL | C119: NE | D119: (060) American History | E119: HIST-2301 | F119: 1 | G119: 37
A120: 2018-2019 | B120: 2018FL | C120: NE | D120: (070) Government and Political Science | E120: GOVT-2305 | F120: 38 | G120: 1268
A121: 2018-2019 | B121: 2018FL | C121: NE | D121: (070) Government and Political Science | E121: GOVT-2306 | F121: 27 | G121: 959
A122: 2018-2019 | B122: 2018FL | C122: NE | D122: (080) Social and Behavioral Sciences | E122: ECON-2301 | F122: 18 | G122: 565
A123: 2018-2019 | B123: 2018FL | C123: NE | D123: (080) Social and Behavioral Sciences | E123: ECON-2302 | F123: 4 | G123: 136
A124: 2018-2019 | B124: 2018FL | C124: NE | D124: (080) Social and Behavioral Sciences | E124: GEOG-1301 | F124: 2 | G124: 50
A125: 2018-2019 | B125: 2018FL | C125: NE | D125: (080) Social and Behavioral Sciences | E125: GEOG-1302 | F125: 1 | G125: 22
A126: 2018-2019 | B126: 2018FL | C126: NE | D126: (080) Social and Behavioral Sciences | E126: GEOG-1303 | F126: 1 | G126: 25
A127: 2018-2019 | B127: 2018FL | C127: NE | D127: (080) Social and Behavioral Sciences | E127: PSYC-2301 | F127: 28 | G127: 981
A128: 2018-2019 | B128: 2018FL | C128: NE | D128: (080) Social and Behavioral Sciences | E128: SOCI-1301 | F128: 16 | G128: 436
A129: 2018-2019 | B129: 2018FL | C129: NE | D129: (090) Component Area Option | E129: ENGL-1302 | F129: 53 | G129: 1164
A130: 2018-2019 | B130: 2018FL | C130: NE | D130: (090) Component Area Option | E130: ENGL-2311 | F130: 5 | G130: 94
A131: 2018-2019 | B131: 2018FL | C131: NE | D131: (090) Component Area Option | E131: KINE-1164 | F131: 32 | G131: 584
A132: 2018-2019 | B132: 2018FL | C132: NW | D132: (010) Communication | E132: ENGL-1301 | F132: 96 | G132: 1993
A133: 2018-2019 | B133: 2018FL | C133: NW | D133: (010) Communication | E133: SPCH-1311 | F133: 29 | G133: 650
A134: 2018-2019 | B134: 2018FL | C134: NW | D134: (010) Communication | E134: SPCH-1315 | F134: 3 | G134: 71
A135: 2018-2019 | B135: 2018FL | C135: NW | D135: (010) Communication | E135: SPCH-1321 | F135: 5 | G135: 101
A136: 2018-2019 | B136: 2018FL | C136: NW | D136: (020) Mathematics | E136: MATH-1314 | F136: 34 | G136: 855
A137: 2018-2019 | B137: 2018FL | C137: NW | D137: (020) Mathematics | E137: MATH-1316 | F137: 1 | G137: 22
A138: 2018-2019 | B138: 2018FL | C138: NW | D138: (020) Mathematics | E138: MATH-1324 | F138: 4 | G138: 93
A139: 2018-2019 | B139: 2018FL | C139: NW | D139: (020) Mathematics | E139: MATH-1325 | F139: 3 | G139: 71
A140: 2018-2019 | B140: 2018FL | C140: NW | D140: (020) Mathematics | E140: MATH-1332 | F140: 8 | G140: 174
A141: 2018-2019 | B141: 2018FL | C141: NW | D141: (020) Mathematics | E141: MATH-1342 | F141: 23 | G141: 560
A142: 2018-2019 | B142: 2018FL | C142: NW | D142: (020) Mathematics | E142: MATH-2412 | F142: 5 | G142: 115
A143: 2018-2019 | B143: 2018FL | C143: NW | D143: (020) Mathematics | E143: MATH-2413 | F143: 3 | G143: 83
A144: 2018-2019 | B144: 2018FL | C144: NW | D144: (030) Life and Physical Sciences | E144: BIOL-1406 | F144: 9 | G144: 200
A145: 2018-2019 | B145: 2018FL | C145: NW | D145: (030) Life and Physical Sciences | E145: BIOL-1407 | F145: 2 | G145: 45
A146: 2018-2019 | B146: 2018FL | C146: NW | D146: (030) Life and Physical Sciences | E146: BIOL-1408 | F146: 11 | G146: 226
A147: 2018-2019 | B147: 2018FL | C147: NW | D147: (030) Life and Physical Sciences | E147: BIOL-1409 | F147: 1 | G147: 22
A148: 2018-2019 | B148: 2018FL | C148: NW | D148: (030) Life and Physical Sciences | E148: BIOL-2401 | F148: 19 | G148: 408
A149: 2018-2019 | B149: 2018FL | C149: NW | D149: (030) Life and Physical Sciences | E149: BIOL-2402 | F149: 7 | G149: 163
A150: 2018-2019 | B150: 2018FL | C150: NW | D150: (030) Life and Physical Sciences | E150: BIOL-2421 | F150: 1 | G150: 15
A151: 2018-2019 | B151: 2018FL | C151: NW | D151: (030) Life and Physical Sciences | E151: CHEM-1405 | F151: 2 | G151: 45
A152: 2018-2019 | B152: 2018FL | C152: NW | D152: (030) Life and Physical Sciences | E152: CHEM-1411 | F152: 7 | G152: 157
A153: 2018-2019 | B153: 2018FL | C153: NW | D153: (030) Life and Physical Sciences | E153: CHEM-1412 | F153: 3 | G153: 56
A154: 2018-2019 | B154: 2018FL | C154: NW | D154: (030) Life and Physical Sciences | E154: CHEM-2423 | F154: 1 | G154: 10
A155: 2018-2019 | B155: 2018FL | C155: NW | D155: (030) Life and Physical Sciences | E155: CHEM-2425 | F155: 1 | G155: 8
A156: 2018-2019 | B156: 2018FL | C156: NW | D156: (030) Life and Physical Sciences | E156: GEOL-1401 | F156: 12 | G156: 263
A157: 2018-2019 | B157: 2018FL | C157: NW | D157: (030) Life and Physical Sciences | E157: GEOL-1402 | F157: 1 | G157: 24
A158: 2018-2019 | B158: 2018FL | C158: NW | D158: (030) Life and Physical Sciences | E158: GEOL-1403 | F158: 4 | G158: 87
A159: 2018-2019 | B159: 2018FL | C159: NW | D159: (030) Life and Physical Sciences | E159: GEOL-1404 | F159: 2 | G159: 37
A160: 2018-2019 | B160: 2018FL | C160: NW | D160: (030) Life and Physical Sciences | E160: GEOL-1405 | F160: 1 | G160: 16
A161: 2018-2019 | B161: 2018FL | C161: NW | D161: (030) Life and Physical Sciences | E161: GEOL-1445 | F161: 3 | G161: 64
A162: 2018-2019 | B162: 2018FL | C162: NW | D162: (030) Life and Physical Sciences | E162: PHYS-1401 | F162: 1 | G162: 21
A163: 2018-2019 | B163: 2018FL | C163: NW | D163: (030) Life and Physical Sciences | E163: PHYS-1403 | F163: 2 | G163: 28
A164: 2018-2019 | B164: 2018FL | C164: NW | D164: (030) Life and Physical Sciences | E164: PHYS-1415 | F164: 4 | G164: 68
A165: 2018-2019 | B165: 2018FL | C165: NW | D165: (030) Life and Physical Sciences | E165: PHYS-2425 | F165: 2 | G165: 44
A166: 2018-2019 | B166: 2018FL | C166: NW | D166: (030) Life and Physical Sciences | E166: PHYS-2426 | F166: 1 | G166: 17
A167: 2018-2019 | B167: 2018FL | C167: NW | D167: (040) Language, Culture, and Philosophy | E167: ENGL-2322 | F167: 17 | G167: 378
A168: 2018-2019 | B168: 2018FL | C168: NW | D168: (040) Language, Culture, and Philosophy | E168: ENGL-2323 | F168: 4 | G168: 51
A169: 2018-2019 | B169: 2018FL | C169: NW | D169: (040) Language, Culture, and Philosophy | E169: ENGL-2327 | F169: 3 | G169: 45
A170: 2018-2019 | B170: 2018FL | C170: NW | D170: (040) Language, Culture, and Philosophy | E170: ENGL-2332 | F170: 1 | G170: 21
A171: 2018-2019 | B171: 2018FL | C171: NW | D171: (040) Language, Culture, and Philosophy | E171: HIST-2311 | F171: 1 | G171: 30
A172: 2018-2019 | B172: 2018FL | C172: NW | D172: (040) Language, Culture, and Philosophy | E172: HUMA-1301 | F172: 12 | G172: 225
A173: 2018-2019 | B173: 2018FL | C173: NW | D173: (040) Language, Culture, and Philosophy | E173: PHIL-1301 | F173: 11 | G173: 286
A174: 2018-2019 | B174: 2018FL | C174: NW | D174: (040) Language, Culture, and Philosophy | E174: PHIL-1304 | F174: 4 | G174: 103
A175: 2018-2019 | B175: 2018FL | C175: NW | D175: (040) Language, Culture, and Philosophy | E175: PHIL-2306 | F175: 3 | G175: 56
A176: 2018-2019 | B176: 2018FL | C176: NW | D176: (040) Language, Culture, and Philosophy | E176: SPAN-2311 | F176: 7 | G176: 104
A177: 2018-2019 | B177: 2018FL | C177: NW | D177: (040) Language, Culture, and Philosophy | E177: SPAN-2312 | F177: 1 | G177: 19
A178: 2018-2019 | B178: 2018FL | C178: NW | D178: (050) Creative Arts | E178: ARTS-1301 | F178: 15 | G178: 358
A179: 2018-2019 | B179: 2018FL | C179: NW | D179: (050) Creative Arts | E179: ARTS-1303 | F179: 1 | G179: 27
A180: 2018-2019 | B180: 2018FL | C180: NW | D180: (050) Creative Arts | E180: COMM-2366 | F180: 1 | G180: 27
A181: 2018-2019 | B181: 2018FL | C181: NW | D181: (050) Creative Arts | E181: DANC-2303 | F181: 3 | G181: 39
A182: 2018-2019 | B182: 2018FL | C182: NW | D182: (050) Creative Arts | E182: DRAM-1310 | F182: 5 | G182: 113
A183: 2018-2019 | B183: 2018FL | C183: NW | D183: (050) Creative Arts | E183: DRAM-2366 | F183: 4 | G183: 68
A184: 2018-2019 | B184: 2018FL | C184: NW | D184: (050) Creative Arts | E184: HUMA-1315 | F184: 4 | G184: 67
A185: 2018-2019 | B185: 2018FL | C185: NW | D185: (050) Creative Arts | E185: MUSI-1306 | F185: 11 | G185: 277
A186: 2018-2019 | B186: 2018FL | C186: NW | D186: (050) Creative Arts | E186: MUSI-1310 | F186: 1 | G186: 18
A187: 2018-2019 | B187: 2018FL | C187: NW | D187: (060) American History | E187: HIST-1301 | F187: 42 | G187: 1049
A188: 2018-2019 | B188: 2018FL | C188: NW | D188: (060) American History | E188: HIST-1302 | F188: 17 | G188: 479
A189: 2018-2019 | B189: 2018FL | C189: NW | D189: (060) American History | E189: HIST-2301 | F189: 2 | G189: 47
A190: 2018-2019 | B190: 2018FL | C190: NW | D190: (070) Government and Political Science | E190: GOVT-2305 | F190: 38 | G190: 1005
A191: 2018-2019 | B191: 2018FL | C191: NW | D191: (070) Government and Political Science | E191: GOVT-2306 | F191: 17 | G191: 461
A192: 2018-2019 | B192: 2018FL | C192: NW | D192: (080) Social and Behavioral Sciences | E192: ECON-2301 | F192: 19 | G192: 457
A193: 2018-2019 | B193: 2018FL | C193: NW | D193: (080) Social and Behavioral Sciences | E193: ECON-2302 | F193: 3 | G193: 71
A194: 2018-2019 | B194: 2018FL | C194: NW | D194: (080) Social and Behavioral Sciences | E194: GEOG-1303 | F194: 2 | G194: 55
A195: 2018-2019 | B195: 2018FL | C195: NW | D195: (080) Social and Behavioral Sciences | E195: PSYC-2301 | F195: 24 | G195: 578
A196: 2018-2019 | B196: 2018FL | C196: NW | D196: (080) Social and Behavioral Sciences | E196: SOCI-1301 | F196: 10 | G196: 273
A197: 2018-2019 | B197: 2018FL | C197: NW | D197: (090) Component Area Option | E197: ENGL-1302 | F197: 24 | G197: 484
A198: 2018-2019 | B198: 2018FL | C198: NW | D198: (090) Component Area Option | E198: ENGL-2311 | F198: 5 | G198: 101
A199: 2018-2019 | B199: 2018FL | C199: NW | D199: (090) Component Area Option | E199: KINE-1164 | F199: 24 | G199: 467
A200: 2018-2019 | B200: 2018FL | C200: SE | D200: (010) Communication | E200: ENGL-1301 | F200: 124 | G200: 2914
... 2993 more rows

Sheet Table3
G1: Academic Year | H1: 2021-2022
G2: Term | H2: (All)
G3: Core Area | H3: (010) Communication
A5: Academic Year | C5: Core Area | G5: Number of Sections | H5: Modality
G6: Course Name | H6: BL1 | I6: CD1 | J6: HL1 | K6: LE1
G7: ENGL-1301 | H7: 108 | I7: 188 | J7: 2 | K7: 1332
G8: SPCH-1311 | H8: 12 | I8: 130 | J8: 6 | K8: 356
G9: SPCH-1315 | H9: 10 | I9: 40 | J9: 6 | K9: 192
G10: SPCH-1321 | H10: 2 | I10: 80 | J10: 6 | K10: 190
A14: Term
A21: To select multiple Terms at once, hold "Shift" or "Ctrl".

Sheet Sheet14 (hidden)
A1: Academic Year | B1: Term | C1: Campus | D1: Core Area | E1: Course Name | F1: Modality | G1: Sections | H1: Enrolls
A2: 2018-2019 | B2: 2018FL | C2: District | D2: (010) Communication | E2: ENGL-1301 | F2: BL1 | G2: 26 | H2: 592
A3: 2018-2019 | B3: 2018FL | C3: District | D3: (010) Communication | E3: ENGL-1301 | F3: CD1 | G3: 26 | H3: 692
A4: 2018-2019 | B4: 2018FL | C4: District | D4: (010) Communication | E4: ENGL-1301 | F4: HL1 | G4: 2 | H4: 47
A5: 2018-2019 | B5: 2018FL | C5: District | D5: (010) Communication | E5: ENGL-1301 | F5: LE1 | G5: 481 | H5: 9383
A6: 2018-2019 | B6: 2018FL | C6: District | D6: (010) Communication | E6: SPCH-1311 | F6: BL1 | G6: 7 | H6: 157
A7: 2018-2019 | B7: 2018FL | C7: District | D7: (010) Communication | E7: SPCH-1311 | F7: CD1 | G7: 18 | H7: 493
A8: 2018-2019 | B8: 2018FL | C8: District | D8: (010) Communication | E8: SPCH-1311 | F8: LE1 | G8: 102 | H8: 2271
A9: 2018-2019 | B9: 2018FL | C9: District | D9: (010) Communication | E9: SPCH-1315 | F9: BL1 | G9: 1 | H9: 23
A10: 2018-2019 | B10: 2018FL | C10: District | D10: (010) Communication | E10: SPCH-1315 | F10: CD1 | G10: 6 | H10: 150
A11: 2018-2019 | B11: 2018FL | C11: District | D11: (010) Communication | E11: SPCH-1315 | F11: LE1 | G11: 54 | H11: 1186
A12: 2018-2019 | B12: 2018FL | C12: District | D12: (010) Communication | E12: SPCH-1321 | F12: CD1 | G12: 14 | H12: 352
A13: 2018-2019 | B13: 2018FL | C13: District | D13: (010) Communication | E13: SPCH-1321 | F13: HL1 | G13: 2 | H13: 50
A14: 2018-2019 | B14: 2018FL | C14: District | D14: (010) Communication | E14: SPCH-1321 | F14: LE1 | G14: 46 | H14: 987
A15: 2018-2019 | B15: 2018FL | C15: District | D15: (020) Mathematics | E15: MATH-1314 | F15: BL1 | G15: 6 | H15: 120
A16: 2018-2019 | B16: 2018FL | C16: District | D16: (020) Mathematics | E16: MATH-1314 | F16: CA1 | G16: 22 | H16: 465
A17: 2018-2019 | B17: 2018FL | C17: District | D17: (020) Mathematics | E17: MATH-1314 | F17: CD1 | G17: 31 | H17: 789
A18: 2018-2019 | B18: 2018FL | C18: District | D18: (020) Mathematics | E18: MATH-1314 | F18: HL1 | G18: 3 | H18: 64
A19: 2018-2019 | B19: 2018FL | C19: District | D19: (020) Mathematics | E19: MATH-1314 | F19: LE1 | G19: 156 | H19: 3934
A20: 2018-2019 | B20: 2018FL | C20: District | D20: (020) Mathematics | E20: MATH-1316 | F20: CD1 | G20: 3 | H20: 72
A21: 2018-2019 | B21: 2018FL | C21: District | D21: (020) Mathematics | E21: MATH-1316 | F21: LE1 | G21: 8 | H21: 141
A22: 2018-2019 | B22: 2018FL | C22: District | D22: (020) Mathematics | E22: MATH-1324 | F22: HL1 | G22: 2 | H22: 36
A23: 2018-2019 | B23: 2018FL | C23: District | D23: (020) Mathematics | E23: MATH-1324 | F23: LE1 | G23: 26 | H23: 575
A24: 2018-2019 | B24: 2018FL | C24: District | D24: (020) Mathematics | E24: MATH-1325 | F24: LE1 | G24: 22 | H24: 532
A25: 2018-2019 | B25: 2018FL | C25: District | D25: (020) Mathematics | E25: MATH-1332 | F25: BL1 | G25: 1 | H25: 20
A26: 2018-2019 | B26: 2018FL | C26: District | D26: (020) Mathematics | E26: MATH-1332 | F26: CA1 | G26: 4 | H26: 72
A27: 2018-2019 | B27: 2018FL | C27: District | D27: (020) Mathematics | E27: MATH-1332 | F27: CD1 | G27: 7 | H27: 195
A28: 2018-2019 | B28: 2018FL | C28: District | D28: (020) Mathematics | E28: MATH-1332 | F28: HL1 | G28: 2 | H28: 47
A29: 2018-2019 | B29: 2018FL | C29: District | D29: (020) Mathematics | E29: MATH-1332 | F29: LE1 | G29: 39 | H29: 951
A30: 2018-2019 | B30: 2018FL | C30: District | D30: (020) Mathematics | E30: MATH-1342 | F30: BL1 | G30: 2 | H30: 55
A31: 2018-2019 | B31: 2018FL | C31: District | D31: (020) Mathematics | E31: MATH-1342 | F31: CA1 | G31: 20 | H31: 414
A32: 2018-2019 | B32: 2018FL | C32: District | D32: (020) Mathematics | E32: MATH-1342 | F32: CD1 | G32: 12 | H32: 312
A33: 2018-2019 | B33: 2018FL | C33: District | D33: (020) Mathematics | E33: MATH-1342 | F33: HL1 | G33: 3 | H33: 75
A34: 2018-2019 | B34: 2018FL | C34: District | D34: (020) Mathematics | E34: MATH-1342 | F34: LE1 | G34: 80 | H34: 1986
A35: 2018-2019 | B35: 2018FL | C35: District | D35: (020) Mathematics | E35: MATH-2412 | F35: BL1 | G35: 2 | H35: 43
A36: 2018-2019 | B36: 2018FL | C36: District | D36: (020) Mathematics | E36: MATH-2412 | F36: LE1 | G36: 32 | H36: 737
A37: 2018-2019 | B37: 2018FL | C37: District | D37: (020) Mathematics | E37: MATH-2413 | F37: LE1 | G37: 26 | H37: 627
A38: 2018-2019 | B38: 2018FL | C38: District | D38: (030) Life and Physical Sciences | E38: BIOL-1406 | F38: CD1 | G38: 3 | H38: 52
A39: 2018-2019 | B39: 2018FL | C39: District | D39: (030) Life and Physical Sciences | E39: BIOL-1406 | F39: LE1 | G39: 53 | H39: 1003
A40: 2018-2019 | B40: 2018FL | C40: District | D40: (030) Life and Physical Sciences | E40: BIOL-1407 | F40: CD1 | G40: 1 | H40: 22
A41: 2018-2019 | B41: 2018FL | C41: District | D41: (030) Life and Physical Sciences | E41: BIOL-1407 | F41: LE1 | G41: 7 | H41: 139
A42: 2018-2019 | B42: 2018FL | C42: District | D42: (030) Life and Physical Sciences | E42: BIOL-1408 | F42: BL1 | G42: 6 | H42: 133
A43: 2018-2019 | B43: 2018FL | C43: District | D43: (030) Life and Physical Sciences | E43: BIOL-1408 | F43: CD1 | G43: 9 | H43: 232
A44: 2018-2019 | B44: 2018FL | C44: District | D44: (030) Life and Physical Sciences | E44: BIOL-1408 | F44: HL1 | G44: 2 | H44: 44
A45: 2018-2019 | B45: 2018FL | C45: District | D45: (030) Life and Physical Sciences | E45: BIOL-1408 | F45: LE1 | G45: 59 | H45: 1292
A46: 2018-2019 | B46: 2018FL | C46: District | D46: (030) Life and Physical Sciences | E46: BIOL-1409 | F46: BL1 | G46: 4 | H46: 85
A47: 2018-2019 | B47: 2018FL | C47: District | D47: (030) Life and Physical Sciences | E47: BIOL-1409 | F47: CD1 | G47: 7 | H47: 165
A48: 2018-2019 | B48: 2018FL | C48: District | D48: (030) Life and Physical Sciences | E48: BIOL-1409 | F48: HL1 | G48: 1 | H48: 24
A49: 2018-2019 | B49: 2018FL | C49: District | D49: (030) Life and Physical Sciences | E49: BIOL-1409 | F49: LE1 | G49: 13 | H49: 262
A50: 2018-2019 | B50: 2018FL | C50: District | D50: (030) Life and Physical Sciences | E50: BIOL-2401 | F50: BL1 | G50: 6 | H50: 124
A51: 2018-2019 | B51: 2018FL | C51: District | D51: (030) Life and Physical Sciences | E51: BIOL-2401 | F51: CD1 | G51: 3 | H51: 61
A52: 2018-2019 | B52: 2018FL | C52: District | D52: (030) Life and Physical Sciences | E52: BIOL-2401 | F52: LE1 | G52: 103 | H52: 2266
A53: 2018-2019 | B53: 2018FL | C53: District | D53: (030) Life and Physical Sciences | E53: BIOL-2402 | F53: BL1 | G53: 8 | H53: 144
A54: 2018-2019 | B54: 2018FL | C54: District | D54: (030) Life and Physical Sciences | E54: BIOL-2402 | F54: LE1 | G54: 37 | H54: 776
A55: 2018-2019 | B55: 2018FL | C55: District | D55: (030) Life and Physical Sciences | E55: BIOL-2421 | F55: BL1 | G55: 1 | H55: 15
A56: 2018-2019 | B56: 2018FL | C56: District | D56: (030) Life and Physical Sciences | E56: BIOL-2421 | F56: LE1 | G56: 3 | H56: 56
A57: 2018-2019 | B57: 2018FL | C57: District | D57: (030) Life and Physical Sciences | E57: CHEM-1405 | F57: LE1 | G57: 15 | H57: 290
A58: 2018-2019 | B58: 2018FL | C58: District | D58: (030) Life and Physical Sciences | E58: CHEM-1411 | F58: BL1 | G58: 1 | H58: 24
A59: 2018-2019 | B59: 2018FL | C59: District | D59: (030) Life and Physical Sciences | E59: CHEM-1411 | F59: LE1 | G59: 40 | H59: 867
A60: 2018-2019 | B60: 2018FL | C60: District | D60: (030) Life and Physical Sciences | E60: CHEM-1412 | F60: CD1 | G60: 1 | H60: 11
A61: 2018-2019 | B61: 2018FL | C61: District | D61: (030) Life and Physical Sciences | E61: CHEM-1412 | F61: LE1 | G61: 12 | H61: 204
A62: 2018-2019 | B62: 2018FL | C62: District | D62: (030) Life and Physical Sciences | E62: CHEM-2423 | F62: BL1 | G62: 1 | H62: 13
A63: 2018-2019 | B63: 2018FL | C63: District | D63: (030) Life and Physical Sciences | E63: CHEM-2423 | F63: LE1 | G63: 9 | H63: 145
A64: 2018-2019 | B64: 2018FL | C64: District | D64: (030) Life and Physical Sciences | E64: CHEM-2425 | F64: LE1 | G64: 4 | H64: 52
A65: 2018-2019 | B65: 2018FL | C65: District | D65: (030) Life and Physical Sciences | E65: GEOL-1401 | F65: BL1 | G65: 13 | H65: 272
A66: 2018-2019 | B66: 2018FL | C66: District | D66: (030) Life and Physical Sciences | E66: GEOL-1401 | F66: LE1 | G66: 23 | H66: 509
A67: 2018-2019 | B67: 2018FL | C67: District | D67: (030) Life and Physical Sciences | E67: GEOL-1402 | F67: LE1 | G67: 2 | H67: 48
A68: 2018-2019 | B68: 2018FL | C68: District | D68: (030) Life and Physical Sciences | E68: GEOL-1403 | F68: BL1 | G68: 9 | H68: 208
A69: 2018-2019 | B69: 2018FL | C69: District | D69: (030) Life and Physical Sciences | E69: GEOL-1403 | F69: CD1 | G69: 8 | H69: 216
A70: 2018-2019 | B70: 2018FL | C70: District | D70: (030) Life and Physical Sciences | E70: GEOL-1403 | F70: LE1 | G70: 23 | H70: 478
A71: 2018-2019 | B71: 2018FL | C71: District | D71: (030) Life and Physical Sciences | E71: GEOL-1404 | F71: BL1 | G71: 1 | H71: 21
A72: 2018-2019 | B72: 2018FL | C72: District | D72: (030) Life and Physical Sciences | E72: GEOL-1404 | F72: CD1 | G72: 3 | H72: 67
A73: 2018-2019 | B73: 2018FL | C73: District | D73: (030) Life and Physical Sciences | E73: GEOL-1404 | F73: LE1 | G73: 5 | H73: 89
A74: 2018-2019 | B74: 2018FL | C74: District | D74: (030) Life and Physical Sciences | E74: GEOL-1405 | F74: LE1 | G74: 3 | H74: 63
A75: 2018-2019 | B75: 2018FL | C75: District | D75: (030) Life and Physical Sciences | E75: GEOL-1445 | F75: LE1 | G75: 6 | H75: 133
A76: 2018-2019 | B76: 2018FL | C76: District | D76: (030) Life and Physical Sciences | E76: GEOL-1447 | F76: LE1 | G76: 1 | H76: 24
A77: 2018-2019 | B77: 2018FL | C77: District | D77: (030) Life and Physical Sciences | E77: PHYS-1401 | F77: LE1 | G77: 13 | H77: 216
A78: 2018-2019 | B78: 2018FL | C78: District | D78: (030) Life and Physical Sciences | E78: PHYS-1402 | F78: LE1 | G78: 3 | H78: 59
A79: 2018-2019 | B79: 2018FL | C79: District | D79: (030) Life and Physical Sciences | E79: PHYS-1403 | F79: LE1 | G79: 6 | H79: 114
A80: 2018-2019 | B80: 2018FL | C80: District | D80: (030) Life and Physical Sciences | E80: PHYS-1404 | F80: LE1 | G80: 4 | H80: 74
A81: 2018-2019 | B81: 2018FL | C81: District | D81: (030) Life and Physical Sciences | E81: PHYS-1405 | F81: LE1 | G81: 1 | H81: 16
A82: 2018-2019 | B82: 2018FL | C82: District | D82: (030) Life and Physical Sciences | E82: PHYS-1415 | F82: LE1 | G82: 7 | H82: 134
A83: 2018-2019 | B83: 2018FL | C83: District | D83: (030) Life and Physical Sciences | E83: PHYS-2425 | F83: LE1 | G83: 10 | H83: 236
A84: 2018-2019 | B84: 2018FL | C84: District | D84: (030) Life and Physical Sciences | E84: PHYS-2426 | F84: LE1 | G84: 4 | H84: 83
A85: 2018-2019 | B85: 2018FL | C85: District | D85: (040) Language, Culture, and Philosophy | E85: ENGL-2322 | F85: CD1 | G85: 3 | H85: 55
A86: 2018-2019 | B86: 2018FL | C86: District | D86: (040) Language, Culture, and Philosophy | E86: ENGL-2322 | F86: LE1 | G86: 55 | H86: 1113
A87: 2018-2019 | B87: 2018FL | C87: District | D87: (040) Language, Culture, and Philosophy | E87: ENGL-2323 | F87: CD1 | G87: 4 | H87: 54
A88: 2018-2019 | B88: 2018FL | C88: District | D88: (040) Language, Culture, and Philosophy | E88: ENGL-2323 | F88: LE1 | G88: 6 | H88: 94
A89: 2018-2019 | B89: 2018FL | C89: District | D89: (040) Language, Culture, and Philosophy | E89: ENGL-2327 | F89: BL1 | G89: 2 | H89: 37
A90: 2018-2019 | B90: 2018FL | C90: District | D90: (040) Language, Culture, and Philosophy | E90: ENGL-2327 | F90: CD1 | G90: 5 | H90: 102
A91: 2018-2019 | B91: 2018FL | C91: District | D91: (040) Language, Culture, and Philosophy | E91: ENGL-2327 | F91: LE1 | G91: 10 | H91: 205
A92: 2018-2019 | B92: 2018FL | C92: District | D92: (040) Language, Culture, and Philosophy | E92: ENGL-2328 | F92: CD1 | G92: 4 | H92: 93
A93: 2018-2019 | B93: 2018FL | C93: District | D93: (040) Language, Culture, and Philosophy | E93: ENGL-2328 | F93: LE1 | G93: 5 | H93: 80
A94: 2018-2019 | B94: 2018FL | C94: District | D94: (040) Language, Culture, and Philosophy | E94: ENGL-2332 | F94: CD1 | G94: 1 | H94: 27
A95: 2018-2019 | B95: 2018FL | C95: District | D95: (040) Language, Culture, and Philosophy | E95: ENGL-2332 | F95: LE1 | G95: 9 | H95: 202
A96: 2018-2019 | B96: 2018FL | C96: District | D96: (040) Language, Culture, and Philosophy | E96: ENGL-2333 | F96: CD1 | G96: 2 | H96: 39
A97: 2018-2019 | B97: 2018FL | C97: District | D97: (040) Language, Culture, and Philosophy | E97: ENGL-2333 | F97: LE1 | G97: 1 | H97: 12
A98: 2018-2019 | B98: 2018FL | C98: District | D98: (040) Language, Culture, and Philosophy | E98: FREN-2311 | F98: LE1 | G98: 1 | H98: 17
A99: 2018-2019 | B99: 2018FL | C99: District | D99: (040) Language, Culture, and Philosophy | E99: GERM-2311 | F99: LE1 | G99: 1 | H99: 13
A100: 2018-2019 | B100: 2018FL | C100: District | D100: (040) Language, Culture, and Philosophy | E100: HIST-2311 | F100: CD1 | G100: 3 | H100: 85
A101: 2018-2019 | B101: 2018FL | C101: District | D101: (040) Language, Culture, and Philosophy | E101: HIST-2311 | F101: LE1 | G101: 4 | H101: 114
A102: 2018-2019 | B102: 2018FL | C102: District | D102: (040) Language, Culture, and Philosophy | E102: HIST-2312 | F102: LE1 | G102: 1 | H102: 15
A103: 2018-2019 | B103: 2018FL | C103: District | D103: (040) Language, Culture, and Philosophy | E103: HIST-2321 | F103: CD1 | G103: 1 | H103: 27
A104: 2018-2019 | B104: 2018FL | C104: District | D104: (040) Language, Culture, and Philosophy | E104: HIST-2321 | F104: LE1 | G104: 9 | H104: 230
A105: 2018-2019 | B105: 2018FL | C105: District | D105: (040) Language, Culture, and Philosophy | E105: HIST-2322 | F105: CD1 | G105: 1 | H105: 27
A106: 2018-2019 | B106: 2018FL | C106: District | D106: (040) Language, Culture, and Philosophy | E106: HIST-2322 | F106: LE1 | G106: 1 | H106: 10
A107: 2018-2019 | B107: 2018FL | C107: District | D107: (040) Language, Culture, and Philosophy | E107: HUMA-1301 | F107: BL1 | G107: 3 | H107: 65
A108: 2018-2019 | B108: 2018FL | C108: District | D108: (040) Language, Culture, and Philosophy | E108: HUMA-1301 | F108: CD1 | G108: 5 | H108: 143
A109: 2018-2019 | B109: 2018FL | C109: District | D109: (040) Language, Culture, and Philosophy | E109: HUMA-1301 | F109: HL1 | G109: 2 | H109: 36
A110: 2018-2019 | B110: 2018FL | C110: District | D110: (040) Language, Culture, and Philosophy | E110: HUMA-1301 | F110: LE1 | G110: 15 | H110: 341
A111: 2018-2019 | B111: 2018FL | C111: District | D111: (040) Language, Culture, and Philosophy | E111: PHIL-1301 | F111: BL1 | G111: 3 | H111: 50
A112: 2018-2019 | B112: 2018FL | C112: District | D112: (040) Language, Culture, and Philosophy | E112: PHIL-1301 | F112: CD1 | G112: 7 | H112: 189
A113: 2018-2019 | B113: 2018FL | C113: District | D113: (040) Language, Culture, and Philosophy | E113: PHIL-1301 | F113: HL1 | G113: 1 | H113: 24
A114: 2018-2019 | B114: 2018FL | C114: District | D114: (040) Language, Culture, and Philosophy | E114: PHIL-1301 | F114: LE1 | G114: 57 | H114: 1551
A115: 2018-2019 | B115: 2018FL | C115: District | D115: (040) Language, Culture, and Philosophy | E115: PHIL-1304 | F115: CD1 | G115: 6 | H115: 173
A116: 2018-2019 | B116: 2018FL | C116: District | D116: (040) Language, Culture, and Philosophy | E116: PHIL-1304 | F116: LE1 | G116: 17 | H116: 392
A117: 2018-2019 | B117: 2018FL | C117: District | D117: (040) Language, Culture, and Philosophy | E117: PHIL-2306 | F117: CD1 | G117: 2 | H117: 54
A118: 2018-2019 | B118: 2018FL | C118: District | D118: (040) Language, Culture, and Philosophy | E118: PHIL-2306 | F118: LE1 | G118: 12 | H118: 223
A119: 2018-2019 | B119: 2018FL | C119: District | D119: (040) Language, Culture, and Philosophy | E119: PHIL-2316 | F119: LE1 | G119: 1 | H119: 25
A120: 2018-2019 | B120: 2018FL | C120: District | D120: (040) Language, Culture, and Philosophy | E120: SPAN-2311 | F120: CD1 | G120: 2 | H120: 57
A121: 2018-2019 | B121: 2018FL | C121: District | D121: (040) Language, Culture, and Philosophy | E121: SPAN-2311 | F121: LE1 | G121: 23 | H121: 364
A122: 2018-2019 | B122: 2018FL | C122: District | D122: (040) Language, Culture, and Philosophy | E122: SPAN-2312 | F122: CD1 | G122: 1 | H122: 29
A123: 2018-2019 | B123: 2018FL | C123: District | D123: (040) Language, Culture, and Philosophy | E123: SPAN-2312 | F123: LE1 | G123: 3 | H123: 49
A124: 2018-2019 | B124: 2018FL | C124: District | D124: (050) Creative Arts | E124: ARTS-1301 | F124: BL1 | G124: 5 | H124: 122
A125: 2018-2019 | B125: 2018FL | C125: District | D125: (050) Creative Arts | E125: ARTS-1301 | F125: CD1 | G125: 19 | H125: 543
A126: 2018-2019 | B126: 2018FL | C126: District | D126: (050) Creative Arts | E126: ARTS-1301 | F126: HL1 | G126: 2 | H126: 39
A127: 2018-2019 | B127: 2018FL | C127: District | D127: (050) Creative Arts | E127: ARTS-1301 | F127: LE1 | G127: 80 | H127: 2168
A128: 2018-2019 | B128: 2018FL | C128: District | D128: (050) Creative Arts | E128: ARTS-1303 | F128: LE1 | G128: 8 | H128: 241
A129: 2018-2019 | B129: 2018FL | C129: District | D129: (050) Creative Arts | E129: COMM-2366 | F129: LE1 | G129: 2 | H129: 56
A130: 2018-2019 | B130: 2018FL | C130: District | D130: (050) Creative Arts | E130: DANC-2303 | F130: BL1 | G130: 4 | H130: 81
A131: 2018-2019 | B131: 2018FL | C131: District | D131: (050) Creative Arts | E131: DANC-2303 | F131: CD1 | G131: 6 | H131: 158
A132: 2018-2019 | B132: 2018FL | C132: District | D132: (050) Creative Arts | E132: DANC-2303 | F132: LE1 | G132: 11 | H132: 217
A133: 2018-2019 | B133: 2018FL | C133: District | D133: (050) Creative Arts | E133: DRAM-1310 | F133: BL1 | G133: 5 | H133: 134
A134: 2018-2019 | B134: 2018FL | C134: District | D134: (050) Creative Arts | E134: DRAM-1310 | F134: CD1 | G134: 9 | H134: 248
A135: 2018-2019 | B135: 2018FL | C135: District | D135: (050) Creative Arts | E135: DRAM-1310 | F135: LE1 | G135: 43 | H135: 920
A136: 2018-2019 | B136: 2018FL | C136: District | D136: (050) Creative Arts | E136: DRAM-2366 | F136: BL1 | G136: 2 | H136: 54
A137: 2018-2019 | B137: 2018FL | C137: District | D137: (050) Creative Arts | E137: DRAM-2366 | F137: CD1 | G137: 5 | H137: 122
A138: 2018-2019 | B138: 2018FL | C138: District | D138: (050) Creative Arts | E138: DRAM-2366 | F138: LE1 | G138: 9 | H138: 196
A139: 2018-2019 | B139: 2018FL | C139: District | D139: (050) Creative Arts | E139: HUMA-1315 | F139: BL1 | G139: 1 | H139: 22
A140: 2018-2019 | B140: 2018FL | C140: District | D140: (050) Creative Arts | E140: HUMA-1315 | F140: LE1 | G140: 7 | H140: 159
A141: 2018-2019 | B141: 2018FL | C141: District | D141: (050) Creative Arts | E141: MUSI-1306 | F141: BL1 | G141: 3 | H141: 62
A142: 2018-2019 | B142: 2018FL | C142: District | D142: (050) Creative Arts | E142: MUSI-1306 | F142: CD1 | G142: 16 | H142: 425
A143: 2018-2019 | B143: 2018FL | C143: District | D143: (050) Creative Arts | E143: MUSI-1306 | F143: HL1 | G143: 2 | H143: 45
A144: 2018-2019 | B144: 2018FL | C144: District | D144: (050) Creative Arts | E144: MUSI-1306 | F144: LE1 | G144: 55 | H144: 1240
A145: 2018-2019 | B145: 2018FL | C145: District | D145: (050) Creative Arts | E145: MUSI-1307 | F145: BL1 | G145: 1 | H145: 24
A146: 2018-2019 | B146: 2018FL | C146: District | D146: (050) Creative Arts | E146: MUSI-1307 | F146: CD1 | G146: 1 | H146: 22
A147: 2018-2019 | B147: 2018FL | C147: District | D147: (050) Creative Arts | E147: MUSI-1310 | F147: CD1 | G147: 1 | H147: 25
A148: 2018-2019 | B148: 2018FL | C148: District | D148: (050) Creative Arts | E148: MUSI-1310 | F148: LE1 | G148: 7 | H148: 144
A149: 2018-2019 | B149: 2018FL | C149: District | D149: (060) American History | E149: HIST-1301 | F149: BL1 | G149: 8 | H149: 201
A150: 2018-2019 | B150: 2018FL | C150: District | D150: (060) American History | E150: HIST-1301 | F150: CD1 | G150: 46 | H150: 1212
A151: 2018-2019 | B151: 2018FL | C151: District | D151: (060) American History | E151: HIST-1301 | F151: HL1 | G151: 2 | H151: 17
A152: 2018-2019 | B152: 2018FL | C152: District | D152: (060) American History | E152: HIST-1301 | F152: LE1 | G152: 240 | H152: 6544
A153: 2018-2019 | B153: 2018FL | C153: District | D153: (060) American History | E153: HIST-1302 | F153: BL1 | G153: 3 | H153: 59
A154: 2018-2019 | B154: 2018FL | C154: District | D154: (060) American History | E154: HIST-1302 | F154: CD1 | G154: 33 | H154: 906
A155: 2018-2019 | B155: 2018FL | C155: District | D155: (060) American History | E155: HIST-1302 | F155: HL1 | G155: 2 | H155: 50
A156: 2018-2019 | B156: 2018FL | C156: District | D156: (060) American History | E156: HIST-1302 | F156: LE1 | G156: 91 | H156: 2481
A157: 2018-2019 | B157: 2018FL | C157: District | D157: (060) American History | E157: HIST-2301 | F157: CD1 | G157: 7 | H157: 181
A158: 2018-2019 | B158: 2018FL | C158: District | D158: (060) American History | E158: HIST-2301 | F158: LE1 | G158: 7 | H158: 195
A159: 2018-2019 | B159: 2018FL | C159: District | D159: (060) American History | E159: HIST-2327 | F159: LE1 | G159: 2 | H159: 31
A160: 2018-2019 | B160: 2018FL | C160: District | D160: (070) Government and Political Science | E160: GOVT-2305 | F160: BL1 | G160: 11 | H160: 281
A161: 2018-2019 | B161: 2018FL | C161: District | D161: (070) Government and Political Science | E161: GOVT-2305 | F161: CD1 | G161: 50 | H161: 1319
A162: 2018-2019 | B162: 2018FL | C162: District | D162: (070) Government and Political Science | E162: GOVT-2305 | F162: HL1 | G162: 2 | H162: 27
A163: 2018-2019 | B163: 2018FL | C163: District | D163: (070) Government and Political Science | E163: GOVT-2305 | F163: LE1 | G163: 178 | H163: 4722
A164: 2018-2019 | B164: 2018FL | C164: District | D164: (070) Government and Political Science | E164: GOVT-2306 | F164: BL1 | G164: 14 | H164: 396
A165: 2018-2019 | B165: 2018FL | C165: District | D165: (070) Government and Political Science | E165: GOVT-2306 | F165: CD1 | G165: 29 | H165: 784
A166: 2018-2019 | B166: 2018FL | C166: District | D166: (070) Government and Political Science | E166: GOVT-2306 | F166: HL1 | G166: 1 | H166: 28
A167: 2018-2019 | B167: 2018FL | C167: District | D167: (070) Government and Political Science | E167: GOVT-2306 | F167: LE1 | G167: 96 | H167: 2958
A168: 2018-2019 | B168: 2018FL | C168: District | D168: (080) Social and Behavioral Sciences | E168: ANTH-2346 | F168: CD1 | G168: 2 | H168: 54
A169: 2018-2019 | B169: 2018FL | C169: District | D169: (080) Social and Behavioral Sciences | E169: ANTH-2346 | F169: LE1 | G169: 1 | H169: 29
A170: 2018-2019 | B170: 2018FL | C170: District | D170: (080) Social and Behavioral Sciences | E170: ECON-2301 | F170: BL1 | G170: 4 | H170: 84
A171: 2018-2019 | B171: 2018FL | C171: District | D171: (080) Social and Behavioral Sciences | E171: ECON-2301 | F171: CD1 | G171: 14 | H171: 363
A172: 2018-2019 | B172: 2018FL | C172: District | D172: (080) Social and Behavioral Sciences | E172: ECON-2301 | F172: HL1 | G172: 2 | H172: 47
A173: 2018-2019 | B173: 2018FL | C173: District | D173: (080) Social and Behavioral Sciences | E173: ECON-2301 | F173: LE1 | G173: 96 | H173: 2239
A174: 2018-2019 | B174: 2018FL | C174: District | D174: (080) Social and Behavioral Sciences | E174: ECON-2302 | F174: CD1 | G174: 7 | H174: 195
A175: 2018-2019 | B175: 2018FL | C175: District | D175: (080) Social and Behavioral Sciences | E175: ECON-2302 | F175: LE1 | G175: 22 | H175: 550
A176: 2018-2019 | B176: 2018FL | C176: District | D176: (080) Social and Behavioral Sciences | E176: GEOG-1301 | F176: CD1 | G176: 2 | H176: 56
A177: 2018-2019 | B177: 2018FL | C177: District | D177: (080) Social and Behavioral Sciences | E177: GEOG-1301 | F177: LE1 | G177: 3 | H177: 70
A178: 2018-2019 | B178: 2018FL | C178: District | D178: (080) Social and Behavioral Sciences | E178: GEOG-1302 | F178: CD1 | G178: 1 | H178: 29
A179: 2018-2019 | B179: 2018FL | C179: District | D179: (080) Social and Behavioral Sciences | E179: GEOG-1302 | F179: LE1 | G179: 1 | H179: 22
A180: 2018-2019 | B180: 2018FL | C180: District | D180: (080) Social and Behavioral Sciences | E180: GEOG-1303 | F180: CD1 | G180: 2 | H180: 56
A181: 2018-2019 | B181: 2018FL | C181: District | D181: (080) Social and Behavioral Sciences | E181: GEOG-1303 | F181: LE1 | G181: 4 | H181: 99
A182: 2018-2019 | B182: 2018FL | C182: District | D182: (080) Social and Behavioral Sciences | E182: PSYC-2301 | F182: BL1 | G182: 8 | H182: 216
A183: 2018-2019 | B183: 2018FL | C183: District | D183: (080) Social and Behavioral Sciences | E183: PSYC-2301 | F183: CD1 | G183: 22 | H183: 622
A184: 2018-2019 | B184: 2018FL | C184: District | D184: (080) Social and Behavioral Sciences | E184: PSYC-2301 | F184: HL1 | G184: 1 | H184: 25
A185: 2018-2019 | B185: 2018FL | C185: District | D185: (080) Social and Behavioral Sciences | E185: PSYC-2301 | F185: LE1 | G185: 120 | H185: 3373
A186: 2018-2019 | B186: 2018FL | C186: District | D186: (080) Social and Behavioral Sciences | E186: SOCI-1301 | F186: BL1 | G186: 3 | H186: 68
A187: 2018-2019 | B187: 2018FL | C187: District | D187: (080) Social and Behavioral Sciences | E187: SOCI-1301 | F187: CD1 | G187: 24 | H187: 659
A188: 2018-2019 | B188: 2018FL | C188: District | D188: (080) Social and Behavioral Sciences | E188: SOCI-1301 | F188: LE1 | G188: 66 | H188: 1750
A189: 2018-2019 | B189: 2018FL | C189: District | D189: (090) Component Area Option | E189: ENGL-1302 | F189: BL1 | G189: 17 | H189: 317
A190: 2018-2019 | B190: 2018FL | C190: District | D190: (090) Component Area Option | E190: ENGL-1302 | F190: CD1 | G190: 28 | H190: 785
A191: 2018-2019 | B191: 2018FL | C191: District | D191: (090) Component Area Option | E191: ENGL-1302 | F191: HL1 | G191: 2 | H191: 52
A192: 2018-2019 | B192: 2018FL | C192: District | D192: (090) Component Area Option | E192: ENGL-1302 | F192: LE1 | G192: 131 | H192: 2850
A193: 2018-2019 | B193: 2018FL | C193: District | D193: (090) Component Area Option | E193: ENGL-2311 | F193: BL1 | G193: 6 | H193: 119
A194: 2018-2019 | B194: 2018FL | C194: District | D194: (090) Component Area Option | E194: ENGL-2311 | F194: CD1 | G194: 7 | H194: 188
A195: 2018-2019 | B195: 2018FL | C195: District | D195: (090) Component Area Option | E195: ENGL-2311 | F195: LE1 | G195: 20 | H195: 371
A196: 2018-2019 | B196: 2018FL | C196: District | D196: (090) Component Area Option | E196: KINE-1164 | F196: BL1 | G196: 24 | H196: 497
A197: 2018-2019 | B197: 2018FL | C197: District | D197: (090) Component Area Option | E197: KINE-1164 | F197: CD1 | G197: 27 | H197: 770
A198: 2018-2019 | B198: 2018FL | C198: District | D198: (090) Component Area Option | E198: KINE-1164 | F198: HL1 | G198: 2 | H198: 37
A199: 2018-2019 | B199: 2018FL | C199: District | D199: (090) Component Area Option | E199: KINE-1164 | F199: LE1 | G199: 92 | H199: 1838
A200: 2018-2019 | B200: 2018FL | C200: CN | D200: (010) Communication | E200: ENGL-1301 | F200: CD1 | G200: 22 | H200: 621
... 6912 more rows

Sheet Table4
G1: Academic Year | H1: 2020-2021
G2: Term | H2: (All)
G3: Core Area | H3: (010) Communication
A5: Academic Year | C5: Core Area | G5: Number of Sections | H5: Format
G6: Course Name | H6: Maymester | I6: Wintermester | J6: 4-week | K6: 5-week | L6: 7-week | M6: 8-week | N6: 10-week | O6: 12-week | P6: 14-week | Q6: 15-week | R6: 16-week
G7: ENGL-1301 | H7: 3 | I7: 7 | J7: 3 | K7: 79 | L7: 4 | M7: 89 | N7: 6 | O7: 39 | P7: 29 | Q7: 6 | R7: 686
G8: SPCH-1311 | H8: 5 | I8: 4 | J8: 2 | K8: 36 | L8: 0 | M8: 30 | N8: 0 | O8: 1 | P8: 10 | Q8: 0 | R8: 164
G9: SPCH-1315 | H9: 6 | I9: 3 | J9: 0 | K9: 16 | L9: 0 | M9: 11 | N9: 5 | O9: 3 | P9: 2 | Q9: 0 | R9: 93
G10: SPCH-1321 | H10: 2 | I10: 3 | J10: 0 | K10: 15 | L10: 4 | M10: 11 | N10: 0 | O10: 0 | P10: 0 | Q10: 0 | R10: 83
A14: Term
A21: To select multiple Terms at once, hold "Shift" or "Ctrl".

Sheet Table5
A1: Success Rates in Core Curriculum Courses for Degree-Seeking FTIC
B8: Core Area | C8: (010) Communication
B10: Enrollment | C10: Academic Year
C11: 2018-2019 | F11: 2019-2020 | I11: 2020-2021 | L11: 2021-2022 | O11: 2022-2023
B12: Cohort | C12: 2018FL | D12: 2019SP | E12: 2019SU | F12: 2019FL | G12: 2020SP | H12: 2020SU | I12: 2020FL | J12: 2021SP | K12: 2021SU | L12: 2021FL | M12: 2022SP | N12: 2022SU | O12: 2022FL
B13: 2018FL | C13: 2864 | D13: 1631 | E13: 218 | F13: 748 | G13: 421 | H13: 114 | I13: 234 | J13: 150 | K13: 47 | L13: 89 | M13: 76 | N13: 28 | O13: 65
B14: 2019FL | F14: 3441 | G14: 1547 | H14: 299 | I14: 663 | J14: 387 | K14: 99 | L14: 248 | M14: 171 | N14: 49 | O14: 102
B15: 2020FL | I15: 2472 | J15: 862 | K15: 184 | L15: 383 | M15: 252 | N15: 71 | O15: 139
B16: 2021FL | L16: 1802 | M16: 1171 | N16: 175 | O16: 465
B17: Core Area | C17: (010) Communication
B19: % Success | C19: Academic Year
C20: 2018-2019 | F20: 2019-2020 | I20: 2020-2021 | L20: 2021-2022 | O20: 2022-2023
B21: Cohort | C21: 2018FL | D21: 2019SP | E21: 2019SU | F21: 2019FL | G21: 2020SP | H21: 2020SU | I21: 2020FL | J21: 2021SP | K21: 2021SU | L21: 2021FL | M21: 2022SP | N21: 2022SU | O21: 2022FL
B22: 2018FL | C22: 0.7060055866 | D22: 0.7032495402 | E22: 0.8577981651 | F22: 0.7272727273 | G22: 0.6817102138 | H22: 0.7368421053 | I22: 0.6111111111 | J22: 0.68 | K22: 0.7872340426 | L22: 0.6404494382 | M22: 0.7631578947 | N22: 0.6428571429 | O22: 0.6923076923
B23: 2019FL | F23: 0.7021214763 | G23: 0.6431803491 | H23: 0.7491638796 | I23: 0.604826546 | J23: 0.6356589147 | K23: 0.6767676768 | L23: 0.7096774194 | M23: 0.6549707602 | N23: 0.8367346939 | O23: 0.6764705882
B24: 2020FL | I24: 0.6351132686 | J24: 0.6020881671 | K24: 0.7934782609 | L24: 0.8015665796 | M24: 0.7698412698 | N24: 0.9295774648 | O24: 0.7769784173
B25: 2021FL | L25: 0.7586015538 | M25: 0.7275832622 | N25: 0.7542857143 | O25: 0.7376344086
B26: Source: Enrollment Data by Term; ODR
A28: Degree-Seeking FTIC by the Term that They Reach Core Completion
A31: Core Completed by Term | C31: 2018-2019 | F31: 2019-2020 | I31: 2020-2021 | L31: 2021-2022 | O31: 2022-2023 | P31: % Core-Completed
A32: Cohort | B32: Total | C32: 2018FL | E32: 2019SU | F32: 2019FL | G32: 2020SP | H32: 2020SU | I32: 2020FL | J32: 2021SP | K32: 2021SU | L32: 2021FL | M32: 2022SP | N32: 2022SU | O32: 2022FL
A33: 2018FL | B33: 3664 | C33: 2 | E33: 2 | F33: 8 | G33: 127 | H33: 63 | I33: 32 | J33: 233 | K33: 43 | L33: 58 | M33: 88 | N33: 30 | O33: 42 | P33: =SUM(C33:O33)/B33 -> 0.1986899563
A34: 2019FL | B34: 3790 | C34: 0 | E34: 0 | F34: 0 | G34: 6 | H34: 7 | I34: 10 | J34: 231 | K34: 71 | L34: 101 | M34: 166 | N34: 53 | O34: 59 | P34: =SUM(C34:O34)/B34 -> 0.1857519789
A35: 2020FL | B35: 2592 | C35: 0 | E35: 0 | F35: 0 | G35: 0 | H35: 0 | I35: 0 | J35: 5 | K35: 9 | L35: 14 | M35: 114 | N35: 66 | O35: 77 | P35: =SUM(C35:O35)/B35 -> 0.1099537037
A36: 2021FL | B36: 2764 | C36: 0 | E36: 0 | F36: 0 | G36: 0 | H36: 0 | I36: 0 | J36: 1 | K36: 0 | L36: 4 | M36: 8 | N36: 6 | O36: 12 | P36: =SUM(C36:O36)/B36 -> 0.01121562952
A37: Source: ST Core Completers; ODR

Sheet Sheet3 (hidden)
A1: Cohort | B1: Academic Year | C1: Term | D1: Core Area | E1: Total | F1: Success | G1: % Success
A2: 2018FL | B2: 2018-2019 | C2: 2018FL | D2: (010) Communication | E2: 2864 | F2: 2022 | G2: 0.7060055866
A3: 2018FL | B3: 2018-2019 | C3: 2018FL | D3: (020) Mathematics | E3: 1495 | F3: 870 | G3: 0.5819397993
A4: 2018FL | B4: 2018-2019 | C4: 2018FL | D4: (030) Life and Physical Sciences | E4: 252 | F4: 146 | G4: 0.5793650794
A5: 2018FL | B5: 2018-2019 | C5: 2018FL | D5: (040) Language, Culture, and Philosophy | E5: 219 | F5: 149 | G5: 0.6803652968
A6: 2018FL | B6: 2018-2019 | C6: 2018FL | D6: (050) Creative Arts | E6: 1441 | F6: 968 | G6: 0.6717557252
A7: 2018FL | B7: 2018-2019 | C7: 2018FL | D7: (060) American History | E7: 1106 | F7: 729 | G7: 0.6591320072
A8: 2018FL | B8: 2018-2019 | C8: 2018FL | D8: (070) Government and Political Science | E8: 809 | F8: 616 | G8: 0.761433869
A9: 2018FL | B9: 2018-2019 | C9: 2018FL | D9: (080) Social and Behavioral Sciences | E9: 1103 | F9: 801 | G9: 0.7262012693
A10: 2018FL | B10: 2018-2019 | C10: 2018FL | D10: (090) Component Area Option | E10: 219 | F10: 150 | G10: 0.6849315068
A11: 2018FL | B11: 2018-2019 | C11: 2019SP | D11: (010) Communication | E11: 1631 | F11: 1147 | G11: 0.7032495402
A12: 2018FL | B12: 2018-2019 | C12: 2019SP | D12: (020) Mathematics | E12: 1075 | F12: 604 | G12: 0.5618604651
A13: 2018FL | B13: 2018-2019 | C13: 2019SP | D13: (030) Life and Physical Sciences | E13: 493 | F13: 285 | G13: 0.5780933063
A14: 2018FL | B14: 2018-2019 | C14: 2019SP | D14: (040) Language, Culture, and Philosophy | E14: 262 | F14: 187 | G14: 0.713740458
A15: 2018FL | B15: 2018-2019 | C15: 2019SP | D15: (050) Creative Arts | E15: 733 | F15: 497 | G15: 0.6780354707
A16: 2018FL | B16: 2018-2019 | C16: 2019SP | D16: (060) American History | E16: 1189 | F16: 815 | G16: 0.6854499579
A17: 2018FL | B17: 2018-2019 | C17: 2019SP | D17: (070) Government and Political Science | E17: 856 | F17: 629 | G17: 0.7348130841
A18: 2018FL | B18: 2018-2019 | C18: 2019SP | D18: (080) Social and Behavioral Sciences | E18: 834 | F18: 587 | G18: 0.7038369305
A19: 2018FL | B19: 2018-2019 | C19: 2019SP | D19: (090) Component Area Option | E19: 1152 | F19: 875 | G19: 0.7595486111
A20: 2018FL | B20: 2018-2019 | C20: 2019SU | D20: (010) Communication | E20: 218 | F20: 187 | G20: 0.8577981651
A21: 2018FL | B21: 2018-2019 | C21: 2019SU | D21: (020) Mathematics | E21: 117 | F21: 82 | G21: 0.7008547009
A22: 2018FL | B22: 2018-2019 | C22: 2019SU | D22: (030) Life and Physical Sciences | E22: 66 | F22: 46 | G22: 0.696969697
A23: 2018FL | B23: 2018-2019 | C23: 2019SU | D23: (040) Language, Culture, and Philosophy | E23: 57 | F23: 53 | G23: 0.9298245614
A24: 2018FL | B24: 2018-2019 | C24: 2019SU | D24: (050) Creative Arts | E24: 94 | F24: 78 | G24: 0.829787234
A25: 2018FL | B25: 2018-2019 | C25: 2019SU | D25: (060) American History | E25: 216 | F25: 184 | G25: 0.8518518519
A26: 2018FL | B26: 2018-2019 | C26: 2019SU | D26: (070) Government and Political Science | E26: 225 | F26: 204 | G26: 0.9066666667
A27: 2018FL | B27: 2018-2019 | C27: 2019SU | D27: (080) Social and Behavioral Sciences | E27: 146 | F27: 126 | G27: 0.8630136986
A28: 2018FL | B28: 2018-2019 | C28: 2019SU | D28: (090) Component Area Option | E28: 221 | F28: 192 | G28: 0.8687782805
A29: 2018FL | B29: 2019-2020 | C29: 2019FL | D29: (010) Communication | E29: 748 | F29: 544 | G29: 0.7272727273
A30: 2018FL | B30: 2019-2020 | C30: 2019FL | D30: (020) Mathematics | E30: 713 | F30: 373 | G30: 0.523141655
A31: 2018FL | B31: 2019-2020 | C31: 2019FL | D31: (030) Life and Physical Sciences | E31: 741 | F31: 508 | G31: 0.685560054
A32: 2018FL | B32: 2019-2020 | C32: 2019FL | D32: (040) Language, Culture, and Philosophy | E32: 379 | F32: 304 | G32: 0.8021108179
A33: 2018FL | B33: 2019-2020 | C33: 2019FL | D33: (050) Creative Arts | E33: 448 | F33: 341 | G33: 0.7611607143
A34: 2018FL | B34: 2019-2020 | C34: 2019FL | D34: (060) American History | E34: 807 | F34: 584 | G34: 0.7236679058
A35: 2018FL | B35: 2019-2020 | C35: 2019FL | D35: (070) Government and Political Science | E35: 835 | F35: 659 | G35: 0.7892215569
A36: 2018FL | B36: 2019-2020 | C36: 2019FL | D36: (080) Social and Behavioral Sciences | E36: 638 | F36: 490 | G36: 0.7680250784
A37: 2018FL | B37: 2019-2020 | C37: 2019FL | D37: (090) Component Area Option | E37: 805 | F37: 604 | G37: 0.750310559
A38: 2018FL | B38: 2019-2020 | C38: 2020SP | D38: (010) Communication | E38: 421 | F38: 287 | G38: 0.6817102138
A39: 2018FL | B39: 2019-2020 | C39: 2020SP | D39: (020) Mathematics | E39: 559 | F39: 323 | G39: 0.5778175313
A40: 2018FL | B40: 2019-2020 | C40: 2020SP | D40: (030) Life and Physical Sciences | E40: 767 | F40: 573 | G40: 0.7470664928
A41: 2018FL | B41: 2019-2020 | C41: 2020SP | D41: (040) Language, Culture, and Philosophy | E41: 369 | F41: 278 | G41: 0.7533875339
A42: 2018FL | B42: 2019-2020 | C42: 2020SP | D42: (050) Creative Arts | E42: 279 | F42: 213 | G42: 0.7634408602
A43: 2018FL | B43: 2019-2020 | C43: 2020SP | D43: (060) American History | E43: 623 | F43: 451 | G43: 0.7239165329
A44: 2018FL | B44: 2019-2020 | C44: 2020SP | D44: (070) Government and Political Science | E44: 621 | F44: 487 | G44: 0.7842190016
A45: 2018FL | B45: 2019-2020 | C45: 2020SP | D45: (080) Social and Behavioral Sciences | E45: 520 | F45: 404 | G45: 0.7769230769
A46: 2018FL | B46: 2019-2020 | C46: 2020SP | D46: (090) Component Area Option | E46: 581 | F46: 405 | G46: 0.6970740103
A47: 2018FL | B47: 2019-2020 | C47: 2020SU | D47: (010) Communication | E47: 114 | F47: 84 | G47: 0.7368421053
A48: 2018FL | B48: 2019-2020 | C48: 2020SU | D48: (020) Mathematics | E48: 149 | F48: 111 | G48: 0.744966443
A49: 2018FL | B49: 2019-2020 | C49: 2020SU | D49: (030) Life and Physical Sciences | E49: 193 | F49: 132 | G49: 0.6839378238
A50: 2018FL | B50: 2019-2020 | C50: 2020SU | D50: (040) Language, Culture, and Philosophy | E50: 118 | F50: 100 | G50: 0.8474576271
A51: 2018FL | B51: 2019-2020 | C51: 2020SU | D51: (050) Creative Arts | E51: 71 | F51: 63 | G51: 0.8873239437
A52: 2018FL | B52: 2019-2020 | C52: 2020SU | D52: (060) American History | E52: 160 | F52: 128 | G52: 0.8
A53: 2018FL | B53: 2019-2020 | C53: 2020SU | D53: (070) Government and Political Science | E53: 172 | F53: 147 | G53: 0.8546511628
A54: 2018FL | B54: 2019-2020 | C54: 2020SU | D54: (080) Social and Behavioral Sciences | E54: 119 | F54: 99 | G54: 0.8319327731
A55: 2018FL | B55: 2019-2020 | C55: 2020SU | D55: (090) Component Area Option | E55: 198 | F55: 160 | G55: 0.8080808081
A56: 2018FL | B56: 2020-2021 | C56: 2020FL | D56: (010) Communication | E56: 234 | F56: 143 | G56: 0.6111111111
A57: 2018FL | B57: 2020-2021 | C57: 2020FL | D57: (020) Mathematics | E57: 344 | F57: 164 | G57: 0.476744186
A58: 2018FL | B58: 2020-2021 | C58: 2020FL | D58: (030) Life and Physical Sciences | E58: 636 | F58: 381 | G58: 0.5990566038
A59: 2018FL | B59: 2020-2021 | C59: 2020FL | D59: (040) Language, Culture, and Philosophy | E59: 278 | F59: 178 | G59: 0.6402877698
A60: 2018FL | B60: 2020-2021 | C60: 2020FL | D60: (050) Creative Arts | E60: 160 | F60: 119 | G60: 0.74375
A61: 2018FL | B61: 2020-2021 | C61: 2020FL | D61: (060) American History | E61: 312 | F61: 217 | G61: 0.6955128205
A62: 2018FL | B62: 2020-2021 | C62: 2020FL | D62: (070) Government and Political Science | E62: 320 | F62: 229 | G62: 0.715625
A63: 2018FL | B63: 2020-2021 | C63: 2020FL | D63: (080) Social and Behavioral Sciences | E63: 258 | F63: 182 | G63: 0.7054263566
A64: 2018FL | B64: 2020-2021 | C64: 2020FL | D64: (090) Component Area Option | E64: 368 | F64: 252 | G64: 0.6847826087
A65: 2018FL | B65: 2020-2021 | C65: 2021SP | D65: (010) Communication | E65: 150 | F65: 102 | G65: 0.68
A66: 2018FL | B66: 2020-2021 | C66: 2021SP | D66: (020) Mathematics | E66: 241 | F66: 114 | G66: 0.4730290456
A67: 2018FL | B67: 2020-2021 | C67: 2021SP | D67: (030) Life and Physical Sciences | E67: 501 | F67: 316 | G67: 0.630738523
A68: 2018FL | B68: 2020-2021 | C68: 2021SP | D68: (040) Language, Culture, and Philosophy | E68: 182 | F68: 132 | G68: 0.7252747253
A69: 2018FL | B69: 2020-2021 | C69: 2021SP | D69: (050) Creative Arts | E69: 93 | F69: 59 | G69: 0.6344086022
A70: 2018FL | B70: 2020-2021 | C70: 2021SP | D70: (060) American History | E70: 201 | F70: 140 | G70: 0.6965174129
A71: 2018FL | B71: 2020-2021 | C71: 2021SP | D71: (070) Government and Political Science | E71: 218 | F71: 141 | G71: 0.6467889908
A72: 2018FL | B72: 2020-2021 | C72: 2021SP | D72: (080) Social and Behavioral Sciences | E72: 191 | F72: 137 | G72: 0.7172774869
A73: 2018FL | B73: 2020-2021 | C73: 2021SP | D73: (090) Component Area Option | E73: 253 | F73: 177 | G73: 0.6996047431
A74: 2018FL | B74: 2020-2021 | C74: 2021SU | D74: (010) Communication | E74: 47 | F74: 37 | G74: 0.7872340426
A75: 2018FL | B75: 2020-2021 | C75: 2021SU | D75: (020) Mathematics | E75: 63 | F75: 38 | G75: 0.6031746032
A76: 2018FL | B76: 2020-2021 | C76: 2021SU | D76: (030) Life and Physical Sciences | E76: 118 | F76: 90 | G76: 0.7627118644
A77: 2018FL | B77: 2020-2021 | C77: 2021SU | D77: (040) Language, Culture, and Philosophy | E77: 67 | F77: 57 | G77: 0.8507462687
A78: 2018FL | B78: 2020-2021 | C78: 2021SU | D78: (050) Creative Arts | E78: 37 | F78: 35 | G78: 0.9459459459
A79: 2018FL | B79: 2020-2021 | C79: 2021SU | D79: (060) American History | E79: 53 | F79: 42 | G79: 0.7924528302
A80: 2018FL | B80: 2020-2021 | C80: 2021SU | D80: (070) Government and Political Science | E80: 55 | F80: 43 | G80: 0.7818181818
A81: 2018FL | B81: 2020-2021 | C81: 2021SU | D81: (080) Social and Behavioral Sciences | E81: 48 | F81: 35 | G81: 0.7291666667
A82: 2018FL | B82: 2020-2021 | C82: 2021SU | D82: (090) Component Area Option | E82: 76 | F82: 56 | G82: 0.7368421053
A83: 2018FL | B83: 2021-2022 | C83: 2021FL | D83: (010) Communication | E83: 89 | F83: 57 | G83: 0.6404494382
A84: 2018FL | B84: 2021-2022 | C84: 2021FL | D84: (020) Mathematics | E84: 151 | F84: 61 | G84: 0.4039735099
A85: 2018FL | B85: 2021-2022 | C85: 2021FL | D85: (030) Life and Physical Sciences | E85: 286 | F85: 170 | G85: 0.5944055944
A86: 2018FL | B86: 2021-2022 | C86: 2021FL | D86: (040) Language, Culture, and Philosophy | E86: 105 | F86: 79 | G86: 0.7523809524
A87: 2018FL | B87: 2021-2022 | C87: 2021FL | D87: (050) Creative Arts | E87: 67 | F87: 48 | G87: 0.7164179104
A88: 2018FL | B88: 2021-2022 | C88: 2021FL | D88: (060) American History | E88: 143 | F88: 101 | G88: 0.7062937063
A89: 2018FL | B89: 2021-2022 | C89: 2021FL | D89: (070) Government and Political Science | E89: 121 | F89: 91 | G89: 0.7520661157
A90: 2018FL | B90: 2021-2022 | C90: 2021FL | D90: (080) Social and Behavioral Sciences | E90: 123 | F90: 94 | G90: 0.7642276423
A91: 2018FL | B91: 2021-2022 | C91: 2021FL | D91: (090) Component Area Option | E91: 137 | F91: 95 | G91: 0.6934306569
A92: 2018FL | B92: 2021-2022 | C92: 2022SP | D92: (010) Communication | E92: 76 | F92: 58 | G92: 0.7631578947
A93: 2018FL | B93: 2021-2022 | C93: 2022SP | D93: (020) Mathematics | E93: 155 | F93: 81 | G93: 0.5225806452
A94: 2018FL | B94: 2021-2022 | C94: 2022SP | D94: (030) Life and Physical Sciences | E94: 242 | F94: 152 | G94: 0.6280991736
A95: 2018FL | B95: 2021-2022 | C95: 2022SP | D95: (040) Language, Culture, and Philosophy | E95: 77 | F95: 56 | G95: 0.7272727273
A96: 2018FL | B96: 2021-2022 | C96: 2022SP | D96: (050) Creative Arts | E96: 48 | F96: 36 | G96: 0.75
A97: 2018FL | B97: 2021-2022 | C97: 2022SP | D97: (060) American History | E97: 128 | F97: 96 | G97: 0.75
A98: 2018FL | B98: 2021-2022 | C98: 2022SP | D98: (070) Government and Political Science | E98: 74 | F98: 55 | G98: 0.7432432432
A99: 2018FL | B99: 2021-2022 | C99: 2022SP | D99: (080) Social and Behavioral Sciences | E99: 107 | F99: 78 | G99: 0.7289719626
A100: 2018FL | B100: 2021-2022 | C100: 2022SP | D100: (090) Component Area Option | E100: 118 | F100: 76 | G100: 0.6440677966
A101: 2018FL | B101: 2021-2022 | C101: 2022SU | D101: (010) Communication | E101: 28 | F101: 18 | G101: 0.6428571429
A102: 2018FL | B102: 2021-2022 | C102: 2022SU | D102: (020) Mathematics | E102: 36 | F102: 24 | G102: 0.6666666667
A103: 2018FL | B103: 2021-2022 | C103: 2022SU | D103: (030) Life and Physical Sciences | E103: 73 | F103: 63 | G103: 0.8630136986
A104: 2018FL | B104: 2021-2022 | C104: 2022SU | D104: (040) Language, Culture, and Philosophy | E104: 31 | F104: 24 | G104: 0.7741935484
A105: 2018FL | B105: 2021-2022 | C105: 2022SU | D105: (050) Creative Arts | E105: 24 | F105: 21 | G105: 0.875
A106: 2018FL | B106: 2021-2022 | C106: 2022SU | D106: (060) American History | E106: 33 | F106: 30 | G106: 0.9090909091
A107: 2018FL | B107: 2021-2022 | C107: 2022SU | D107: (070) Government and Political Science | E107: 29 | F107: 24 | G107: 0.8275862069
A108: 2018FL | B108: 2021-2022 | C108: 2022SU | D108: (080) Social and Behavioral Sciences | E108: 44 | F108: 42 | G108: 0.9545454545
A109: 2018FL | B109: 2021-2022 | C109: 2022SU | D109: (090) Component Area Option | E109: 37 | F109: 31 | G109: 0.8378378378
A110: 2018FL | B110: 2022-2023 | C110: 2022FL | D110: (010) Communication | E110: 65 | F110: 45 | G110: 0.6923076923
A111: 2018FL | B111: 2022-2023 | C111: 2022FL | D111: (020) Mathematics | E111: 108 | F111: 48 | G111: 0.4444444444
A112: 2018FL | B112: 2022-2023 | C112: 2022FL | D112: (030) Life and Physical Sciences | E112: 184 | F112: 116 | G112: 0.6304347826
A113: 2018FL | B113: 2022-2023 | C113: 2022FL | D113: (040) Language, Culture, and Philosophy | E113: 59 | F113: 43 | G113: 0.7288135593
A114: 2018FL | B114: 2022-2023 | C114: 2022FL | D114: (050) Creative Arts | E114: 43 | F114: 33 | G114: 0.7674418605
A115: 2018FL | B115: 2022-2023 | C115: 2022FL | D115: (060) American History | E115: 64 | F115: 44 | G115: 0.6875
A116: 2018FL | B116: 2022-2023 | C116: 2022FL | D116: (070) Government and Political Science | E116: 73 | F116: 52 | G116: 0.7123287671
A117: 2018FL | B117: 2022-2023 | C117: 2022FL | D117: (080) Social and Behavioral Sciences | E117: 72 | F117: 53 | G117: 0.7361111111
A118: 2018FL | B118: 2022-2023 | C118: 2022FL | D118: (090) Component Area Option | E118: 74 | F118: 42 | G118: 0.5675675676
A119: 2019FL | B119: 2019-2020 | C119: 2019FL | D119: (010) Communication | E119: 3441 | F119: 2416 | G119: 0.7021214763
A120: 2019FL | B120: 2019-2020 | C120: 2019FL | D120: (020) Mathematics | E120: 1800 | F120: 1142 | G120: 0.6344444444
A121: 2019FL | B121: 2019-2020 | C121: 2019FL | D121: (030) Life and Physical Sciences | E121: 348 | F121: 223 | G121: 0.6408045977
A122: 2019FL | B122: 2019-2020 | C122: 2019FL | D122: (040) Language, Culture, and Philosophy | E122: 220 | F122: 150 | G122: 0.6818181818
A123: 2019FL | B123: 2019-2020 | C123: 2019FL | D123: (050) Creative Arts | E123: 1509 | F123: 998 | G123: 0.6613651425
A124: 2019FL | B124: 2019-2020 | C124: 2019FL | D124: (060) American History | E124: 1214 | F124: 801 | G124: 0.6598023064
A125: 2019FL | B125: 2019-2020 | C125: 2019FL | D125: (070) Government and Political Science | E125: 857 | F125: 649 | G125: 0.7572928821
A126: 2019FL | B126: 2019-2020 | C126: 2019FL | D126: (080) Social and Behavioral Sciences | E126: 1175 | F126: 852 | G126: 0.725106383
A127: 2019FL | B127: 2019-2020 | C127: 2019FL | D127: (090) Component Area Option | E127: 280 | F127: 196 | G127: 0.7
A128: 2019FL | B128: 2019-2020 | C128: 2020SP | D128: (010) Communication | E128: 1547 | F128: 995 | G128: 0.6431803491
A129: 2019FL | B129: 2019-2020 | C129: 2020SP | D129: (020) Mathematics | E129: 1165 | F129: 718 | G129: 0.6163090129
A130: 2019FL | B130: 2019-2020 | C130: 2020SP | D130: (030) Life and Physical Sciences | E130: 649 | F130: 424 | G130: 0.6533127889
A131: 2019FL | B131: 2019-2020 | C131: 2020SP | D131: (040) Language, Culture, and Philosophy | E131: 307 | F131: 226 | G131: 0.7361563518
A132: 2019FL | B132: 2019-2020 | C132: 2020SP | D132: (050) Creative Arts | E132: 806 | F132: 558 | G132: 0.6923076923
A133: 2019FL | B133: 2019-2020 | C133: 2020SP | D133: (060) American History | E133: 1267 | F133: 909 | G133: 0.7174427782
A134: 2019FL | B134: 2019-2020 | C134: 2020SP | D134: (070) Government and Political Science | E134: 940 | F134: 700 | G134: 0.7446808511
A135: 2019FL | B135: 2019-2020 | C135: 2020SP | D135: (080) Social and Behavioral Sciences | E135: 920 | F135: 679 | G135: 0.7380434783
A136: 2019FL | B136: 2019-2020 | C136: 2020SP | D136: (090) Component Area Option | E136: 1339 | F136: 991 | G136: 0.7401045556
A137: 2019FL | B137: 2019-2020 | C137: 2020SU | D137: (010) Communication | E137: 299 | F137: 224 | G137: 0.7491638796
A138: 2019FL | B138: 2019-2020 | C138: 2020SU | D138: (020) Mathematics | E138: 155 | F138: 113 | G138: 0.7290322581
A139: 2019FL | B139: 2019-2020 | C139: 2020SU | D139: (030) Life and Physical Sciences | E139: 117 | F139: 81 | G139: 0.6923076923
A140: 2019FL | B140: 2019-2020 | C140: 2020SU | D140: (040) Language, Culture, and Philosophy | E140: 112 | F140: 95 | G140: 0.8482142857
A141: 2019FL | B141: 2019-2020 | C141: 2020SU | D141: (050) Creative Arts | E141: 146 | F141: 130 | G141: 0.8904109589
A142: 2019FL | B142: 2019-2020 | C142: 2020SU | D142: (060) American History | E142: 314 | F142: 260 | G142: 0.8280254777
A143: 2019FL | B143: 2019-2020 | C143: 2020SU | D143: (070) Government and Political Science | E143: 310 | F143: 256 | G143: 0.8258064516
A144: 2019FL | B144: 2019-2020 | C144: 2020SU | D144: (080) Social and Behavioral Sciences | E144: 214 | F144: 182 | G144: 0.8504672897
A145: 2019FL | B145: 2019-2020 | C145: 2020SU | D145: (090) Component Area Option | E145: 260 | F145: 221 | G145: 0.85
A146: 2019FL | B146: 2020-2021 | C146: 2020FL | D146: (010) Communication | E146: 663 | F146: 401 | G146: 0.604826546
A147: 2019FL | B147: 2020-2021 | C147: 2020FL | D147: (020) Mathematics | E147: 599 | F147: 306 | G147: 0.510851419
A148: 2019FL | B148: 2020-2021 | C148: 2020FL | D148: (030) Life and Physical Sciences | E148: 845 | F148: 522 | G148: 0.6177514793
A149: 2019FL | B149: 2020-2021 | C149: 2020FL | D149: (040) Language, Culture, and Philosophy | E149: 475 | F149: 347 | G149: 0.7305263158
A150: 2019FL | B150: 2020-2021 | C150: 2020FL | D150: (050) Creative Arts | E150: 379 | F150: 278 | G150: 0.7335092348
A151: 2019FL | B151: 2020-2021 | C151: 2020FL | D151: (060) American History | E151: 793 | F151: 566 | G151: 0.7137452711
A152: 2019FL | B152: 2020-2021 | C152: 2020FL | D152: (070) Government and Political Science | E152: 834 | F152: 637 | G152: 0.7637889688
A153: 2019FL | B153: 2020-2021 | C153: 2020FL | D153: (080) Social and Behavioral Sciences | E153: 567 | F153: 402 | G153: 0.708994709
A154: 2019FL | B154: 2020-2021 | C154: 2020FL | D154: (090) Component Area Option | E154: 804 | F154: 539 | G154: 0.67039801
A155: 2019FL | B155: 2020-2021 | C155: 2021SP | D155: (010) Communication | E155: 387 | F155: 246 | G155: 0.6356589147
A156: 2019FL | B156: 2020-2021 | C156: 2021SP | D156: (020) Mathematics | E156: 439 | F156: 239 | G156: 0.5444191344
A157: 2019FL | B157: 2020-2021 | C157: 2021SP | D157: (030) Life and Physical Sciences | E157: 809 | F157: 538 | G157: 0.6650185414
A158: 2019FL | B158: 2020-2021 | C158: 2021SP | D158: (040) Language, Culture, and Philosophy | E158: 462 | F158: 352 | G158: 0.7619047619
A159: 2019FL | B159: 2020-2021 | C159: 2021SP | D159: (050) Creative Arts | E159: 256 | F159: 198 | G159: 0.7734375
A160: 2019FL | B160: 2020-2021 | C160: 2021SP | D160: (060) American History | E160: 485 | F160: 351 | G160: 0.7237113402
A161: 2019FL | B161: 2020-2021 | C161: 2021SP | D161: (070) Government and Political Science | E161: 601 | F161: 456 | G161: 0.7587354409
A162: 2019FL | B162: 2020-2021 | C162: 2021SP | D162: (080) Social and Behavioral Sciences | E162: 416 | F162: 310 | G162: 0.7451923077
A163: 2019FL | B163: 2020-2021 | C163: 2021SP | D163: (090) Component Area Option | E163: 591 | F163: 411 | G163: 0.6954314721
A164: 2019FL | B164: 2020-2021 | C164: 2021SU | D164: (010) Communication | E164: 99 | F164: 67 | G164: 0.6767676768
A165: 2019FL | B165: 2020-2021 | C165: 2021SU | D165: (020) Mathematics | E165: 123 | F165: 88 | G165: 0.7154471545
A166: 2019FL | B166: 2020-2021 | C166: 2021SU | D166: (030) Life and Physical Sciences | E166: 221 | F166: 170 | G166: 0.7692307692
A167: 2019FL | B167: 2020-2021 | C167: 2021SU | D167: (040) Language, Culture, and Philosophy | E167: 128 | F167: 115 | G167: 0.8984375
A168: 2019FL | B168: 2020-2021 | C168: 2021SU | D168: (050) Creative Arts | E168: 70 | F168: 54 | G168: 0.7714285714
A169: 2019FL | B169: 2020-2021 | C169: 2021SU | D169: (060) American History | E169: 103 | F169: 83 | G169: 0.8058252427
A170: 2019FL | B170: 2020-2021 | C170: 2021SU | D170: (070) Government and Political Science | E170: 116 | F170: 95 | G170: 0.8189655172
A171: 2019FL | B171: 2020-2021 | C171: 2021SU | D171: (080) Social and Behavioral Sciences | E171: 130 | F171: 107 | G171: 0.8230769231
A172: 2019FL | B172: 2020-2021 | C172: 2021SU | D172: (090) Component Area Option | E172: 158 | F172: 126 | G172: 0.7974683544
A173: 2019FL | B173: 2021-2022 | C173: 2021FL | D173: (010) Communication | E173: 248 | F173: 176 | G173: 0.7096774194
A174: 2019FL | B174: 2021-2022 | C174: 2021FL | D174: (020) Mathematics | E174: 345 | F174: 166 | G174: 0.4811594203
A175: 2019FL | B175: 2021-2022 | C175: 2021FL | D175: (030) Life and Physical Sciences | E175: 501 | F175: 314 | G175: 0.626746507
A176: 2019FL | B176: 2021-2022 | C176: 2021FL | D176: (040) Language, Culture, and Philosophy | E176: 234 | F176: 182 | G176: 0.7777777778
A177: 2019FL | B177: 2021-2022 | C177: 2021FL | D177: (050) Creative Arts | E177: 142 | F177: 106 | G177: 0.7464788732
A178: 2019FL | B178: 2021-2022 | C178: 2021FL | D178: (060) American History | E178: 277 | F178: 202 | G178: 0.7292418773
A179: 2019FL | B179: 2021-2022 | C179: 2021FL | D179: (070) Government and Political Science | E179: 310 | F179: 239 | G179: 0.7709677419
A180: 2019FL | B180: 2021-2022 | C180: 2021FL | D180: (080) Social and Behavioral Sciences | E180: 241 | F180: 185 | G180: 0.7676348548
A181: 2019FL | B181: 2021-2022 | C181: 2021FL | D181: (090) Component Area Option | E181: 321 | F181: 228 | G181: 0.7102803738
A182: 2019FL | B182: 2021-2022 | C182: 2022SP | D182: (010) Communication | E182: 171 | F182: 112 | G182: 0.6549707602
A183: 2019FL | B183: 2021-2022 | C183: 2022SP | D183: (020) Mathematics | E183: 260 | F183: 137 | G183: 0.5269230769
A184: 2019FL | B184: 2021-2022 | C184: 2022SP | D184: (030) Life and Physical Sciences | E184: 476 | F184: 302 | G184: 0.6344537815
A185: 2019FL | B185: 2021-2022 | C185: 2022SP | D185: (040) Language, Culture, and Philosophy | E185: 195 | F185: 151 | G185: 0.7743589744
A186: 2019FL | B186: 2021-2022 | C186: 2022SP | D186: (050) Creative Arts | E186: 160 | F186: 129 | G186: 0.80625
A187: 2019FL | B187: 2021-2022 | C187: 2022SP | D187: (060) American History | E187: 211 | F187: 145 | G187: 0.6872037915
A188: 2019FL | B188: 2021-2022 | C188: 2022SP | D188: (070) Government and Political Science | E188: 203 | F188: 147 | G188: 0.724137931
A189: 2019FL | B189: 2021-2022 | C189: 2022SP | D189: (080) Social and Behavioral Sciences | E189: 222 | F189: 174 | G189: 0.7837837838
A190: 2019FL | B190: 2021-2022 | C190: 2022SP | D190: (090) Component Area Option | E190: 237 | F190: 150 | G190: 0.6329113924
A191: 2019FL | B191: 2021-2022 | C191: 2022SU | D191: (010) Communication | E191: 49 | F191: 41 | G191: 0.8367346939
A192: 2019FL | B192: 2021-2022 | C192: 2022SU | D192: (020) Mathematics | E192: 57 | F192: 39 | G192: 0.6842105263
A193: 2019FL | B193: 2021-2022 | C193: 2022SU | D193: (030) Life and Physical Sciences | E193: 96 | F193: 74 | G193: 0.7708333333
A194: 2019FL | B194: 2021-2022 | C194: 2022SU | D194: (040) Language, Culture, and Philosophy | E194: 55 | F194: 48 | G194: 0.8727272727
A195: 2019FL | B195: 2021-2022 | C195: 2022SU | D195: (050) Creative Arts | E195: 24 | F195: 24 | G195: 1
A196: 2019FL | B196: 2021-2022 | C196: 2022SU | D196: (060) American History | E196: 57 | F196: 46 | G196: 0.8070175439
A197: 2019FL | B197: 2021-2022 | C197: 2022SU | D197: (070) Government and Political Science | E197: 63 | F197: 55 | G197: 0.873015873
A198: 2019FL | B198: 2021-2022 | C198: 2022SU | D198: (080) Social and Behavioral Sciences | E198: 63 | F198: 56 | G198: 0.8888888889
A199: 2019FL | B199: 2021-2022 | C199: 2022SU | D199: (090) Component Area Option | E199: 81 | F199: 65 | G199: 0.8024691358
A200: 2019FL | B200: 2022-2023 | C200: 2022FL | D200: (010) Communication | E200: 102 | F200: 69 | G200: 0.6764705882
... 107 more rows

Sheet Sheet17 (hidden)
A1: Academic Year | B1: Term | C1: Core Area | D1: Course Name | E1: Format | F1: Sections | G1: Enrolls
A2: 2018-2019 | B2: 2018FL | C2: (010) Communication | D2: ENGL-1301 | E2: 12-week | F2: 13 | G2: 269
A3: 2018-2019 | B3: 2018FL | C3: (010) Communication | D3: ENGL-1301 | E3: 14-week | F3: 24 | G3: 498
A4: 2018-2019 | B4: 2018FL | C4: (010) Communication | D4: ENGL-1301 | E4: 16-week | F4: 448 | G4: 8801
A5: 2018-2019 | B5: 2018FL | C5: (010) Communication | D5: ENGL-1301 | E5: 4-week | F5: 3 | G5: 83
A6: 2018-2019 | B6: 2018FL | C6: (010) Communication | D6: ENGL-1301 | E6: 7-week | F6: 3 | G6: 73
A7: 2018-2019 | B7: 2018FL | C7: (010) Communication | D7: ENGL-1301 | E7: 8-week | F7: 44 | G7: 990
A8: 2018-2019 | B8: 2018FL | C8: (010) Communication | D8: SPCH-1311 | E8: 14-week | F8: 6 | G8: 124
A9: 2018-2019 | B9: 2018FL | C9: (010) Communication | D9: SPCH-1311 | E9: 16-week | F9: 115 | G9: 2662
A10: 2018-2019 | B10: 2018FL | C10: (010) Communication | D10: SPCH-1311 | E10: 8-week | F10: 6 | G10: 135
A11: 2018-2019 | B11: 2018FL | C11: (010) Communication | D11: SPCH-1315 | E11: 14-week | F11: 1 | G11: 20
A12: 2018-2019 | B12: 2018FL | C12: (010) Communication | D12: SPCH-1315 | E12: 16-week | F12: 56 | G12: 1236
A13: 2018-2019 | B13: 2018FL | C13: (010) Communication | D13: SPCH-1315 | E13: 8-week | F13: 4 | G13: 103
A14: 2018-2019 | B14: 2018FL | C14: (010) Communication | D14: SPCH-1321 | E14: 14-week | F14: 2 | G14: 45
A15: 2018-2019 | B15: 2018FL | C15: (010) Communication | D15: SPCH-1321 | E15: 16-week | F15: 53 | G15: 1166
A16: 2018-2019 | B16: 2018FL | C16: (010) Communication | D16: SPCH-1321 | E16: 4-week | F16: 1 | G16: 26
A17: 2018-2019 | B17: 2018FL | C17: (010) Communication | D17: SPCH-1321 | E17: 7-week | F17: 2 | G17: 50
A18: 2018-2019 | B18: 2018FL | C18: (010) Communication | D18: SPCH-1321 | E18: 8-week | F18: 4 | G18: 102
A19: 2018-2019 | B19: 2018FL | C19: (020) Mathematics | D19: MATH-1314 | E19: 11-week | F19: 1 | G19: 23
A20: 2018-2019 | B20: 2018FL | C20: (020) Mathematics | D20: MATH-1314 | E20: 12-week | F20: 4 | G20: 87
A21: 2018-2019 | B21: 2018FL | C21: (020) Mathematics | D21: MATH-1314 | E21: 14-week | F21: 13 | G21: 333
A22: 2018-2019 | B22: 2018FL | C22: (020) Mathematics | D22: MATH-1314 | E22: 15-week | F22: 3 | G22: 72
A23: 2018-2019 | B23: 2018FL | C23: (020) Mathematics | D23: MATH-1314 | E23: 16-week | F23: 189 | G23: 4668
A24: 2018-2019 | B24: 2018FL | C24: (020) Mathematics | D24: MATH-1314 | E24: 7-week | F24: 3 | G24: 64
A25: 2018-2019 | B25: 2018FL | C25: (020) Mathematics | D25: MATH-1314 | E25: 8-week | F25: 5 | G25: 125
A26: 2018-2019 | B26: 2018FL | C26: (020) Mathematics | D26: MATH-1316 | E26: 16-week | F26: 11 | G26: 213
A27: 2018-2019 | B27: 2018FL | C27: (020) Mathematics | D27: MATH-1324 | E27: 14-week | F27: 3 | G27: 61
A28: 2018-2019 | B28: 2018FL | C28: (020) Mathematics | D28: MATH-1324 | E28: 16-week | F28: 23 | G28: 514
A29: 2018-2019 | B29: 2018FL | C29: (020) Mathematics | D29: MATH-1324 | E29: 7-week | F29: 2 | G29: 36
A30: 2018-2019 | B30: 2018FL | C30: (020) Mathematics | D30: MATH-1325 | E30: 14-week | F30: 2 | G30: 48
A31: 2018-2019 | B31: 2018FL | C31: (020) Mathematics | D31: MATH-1325 | E31: 16-week | F31: 20 | G31: 484
A32: 2018-2019 | B32: 2018FL | C32: (020) Mathematics | D32: MATH-1332 | E32: 12-week | F32: 1 | G32: 24
A33: 2018-2019 | B33: 2018FL | C33: (020) Mathematics | D33: MATH-1332 | E33: 14-week | F33: 4 | G33: 95
A34: 2018-2019 | B34: 2018FL | C34: (020) Mathematics | D34: MATH-1332 | E34: 16-week | F34: 44 | G34: 1066
A35: 2018-2019 | B35: 2018FL | C35: (020) Mathematics | D35: MATH-1332 | E35: 4-week | F35: 1 | G35: 30
A36: 2018-2019 | B36: 2018FL | C36: (020) Mathematics | D36: MATH-1332 | E36: 7-week | F36: 2 | G36: 47
A37: 2018-2019 | B37: 2018FL | C37: (020) Mathematics | D37: MATH-1332 | E37: 8-week | F37: 1 | G37: 23
A38: 2018-2019 | B38: 2018FL | C38: (020) Mathematics | D38: MATH-1342 | E38: 11-week | F38: 1 | G38: 22
A39: 2018-2019 | B39: 2018FL | C39: (020) Mathematics | D39: MATH-1342 | E39: 14-week | F39: 8 | G39: 202
A40: 2018-2019 | B40: 2018FL | C40: (020) Mathematics | D40: MATH-1342 | E40: 16-week | F40: 105 | G40: 2543
A41: 2018-2019 | B41: 2018FL | C41: (020) Mathematics | D41: MATH-1342 | E41: 7-week | F41: 3 | G41: 75
A42: 2018-2019 | B42: 2018FL | C42: (020) Mathematics | D42: MATH-2412 | E42: 14-week | F42: 1 | G42: 23
A43: 2018-2019 | B43: 2018FL | C43: (020) Mathematics | D43: MATH-2412 | E43: 16-week | F43: 33 | G43: 757
A44: 2018-2019 | B44: 2018FL | C44: (020) Mathematics | D44: MATH-2413 | E44: 14-week | F44: 1 | G44: 24
A45: 2018-2019 | B45: 2018FL | C45: (020) Mathematics | D45: MATH-2413 | E45: 16-week | F45: 22 | G45: 565
A46: 2018-2019 | B46: 2018FL | C46: (020) Mathematics | D46: MATH-2413 | E46: 31-week | F46: 3 | G46: 38
A47: 2018-2019 | B47: 2018FL | C47: (030) Life and Physical Sciences | D47: BIOL-1406 | E47: 14-week | F47: 4 | G47: 92
A48: 2018-2019 | B48: 2018FL | C48: (030) Life and Physical Sciences | D48: BIOL-1406 | E48: 16-week | F48: 52 | G48: 963
A49: 2018-2019 | B49: 2018FL | C49: (030) Life and Physical Sciences | D49: BIOL-1407 | E49: 16-week | F49: 8 | G49: 161
A50: 2018-2019 | B50: 2018FL | C50: (030) Life and Physical Sciences | D50: BIOL-1408 | E50: 12-week | F50: 2 | G50: 40
A51: 2018-2019 | B51: 2018FL | C51: (030) Life and Physical Sciences | D51: BIOL-1408 | E51: 14-week | F51: 5 | G51: 113
A52: 2018-2019 | B52: 2018FL | C52: (030) Life and Physical Sciences | D52: BIOL-1408 | E52: 16-week | F52: 65 | G52: 1460
A53: 2018-2019 | B53: 2018FL | C53: (030) Life and Physical Sciences | D53: BIOL-1408 | E53: 7-week | F53: 2 | G53: 44
A54: 2018-2019 | B54: 2018FL | C54: (030) Life and Physical Sciences | D54: BIOL-1408 | E54: 8-week | F54: 2 | G54: 44
A55: 2018-2019 | B55: 2018FL | C55: (030) Life and Physical Sciences | D55: BIOL-1409 | E55: 12-week | F55: 1 | G55: 23
A56: 2018-2019 | B56: 2018FL | C56: (030) Life and Physical Sciences | D56: BIOL-1409 | E56: 14-week | F56: 1 | G56: 11
A57: 2018-2019 | B57: 2018FL | C57: (030) Life and Physical Sciences | D57: BIOL-1409 | E57: 16-week | F57: 19 | G57: 414
A58: 2018-2019 | B58: 2018FL | C58: (030) Life and Physical Sciences | D58: BIOL-1409 | E58: 7-week | F58: 2 | G58: 45
A59: 2018-2019 | B59: 2018FL | C59: (030) Life and Physical Sciences | D59: BIOL-1409 | E59: 8-week | F59: 2 | G59: 43
A60: 2018-2019 | B60: 2018FL | C60: (030) Life and Physical Sciences | D60: BIOL-2401 | E60: 14-week | F60: 12 | G60: 272
A61: 2018-2019 | B61: 2018FL | C61: (030) Life and Physical Sciences | D61: BIOL-2401 | E61: 16-week | F61: 98 | G61: 2142
A62: 2018-2019 | B62: 2018FL | C62: (030) Life and Physical Sciences | D62: BIOL-2401 | E62: 8-week | F62: 2 | G62: 37
A63: 2018-2019 | B63: 2018FL | C63: (030) Life and Physical Sciences | D63: BIOL-2402 | E63: 14-week | F63: 7 | G63: 144
A64: 2018-2019 | B64: 2018FL | C64: (030) Life and Physical Sciences | D64: BIOL-2402 | E64: 16-week | F64: 33 | G64: 672
A65: 2018-2019 | B65: 2018FL | C65: (030) Life and Physical Sciences | D65: BIOL-2402 | E65: 8-week | F65: 5 | G65: 104
A66: 2018-2019 | B66: 2018FL | C66: (030) Life and Physical Sciences | D66: BIOL-2421 | E66: 16-week | F66: 4 | G66: 71
A67: 2018-2019 | B67: 2018FL | C67: (030) Life and Physical Sciences | D67: CHEM-1405 | E67: 14-week | F67: 3 | G67: 61
A68: 2018-2019 | B68: 2018FL | C68: (030) Life and Physical Sciences | D68: CHEM-1405 | E68: 16-week | F68: 12 | G68: 229
A69: 2018-2019 | B69: 2018FL | C69: (030) Life and Physical Sciences | D69: CHEM-1411 | E69: 14-week | F69: 3 | G69: 68
A70: 2018-2019 | B70: 2018FL | C70: (030) Life and Physical Sciences | D70: CHEM-1411 | E70: 16-week | F70: 38 | G70: 823
A71: 2018-2019 | B71: 2018FL | C71: (030) Life and Physical Sciences | D71: CHEM-1412 | E71: 16-week | F71: 13 | G71: 215
A72: 2018-2019 | B72: 2018FL | C72: (030) Life and Physical Sciences | D72: CHEM-2423 | E72: 16-week | F72: 10 | G72: 158
A73: 2018-2019 | B73: 2018FL | C73: (030) Life and Physical Sciences | D73: CHEM-2425 | E73: 16-week | F73: 4 | G73: 52
A74: 2018-2019 | B74: 2018FL | C74: (030) Life and Physical Sciences | D74: GEOL-1401 | E74: 12-week | F74: 3 | G74: 54
A75: 2018-2019 | B75: 2018FL | C75: (030) Life and Physical Sciences | D75: GEOL-1401 | E75: 14-week | F75: 5 | G75: 102
A76: 2018-2019 | B76: 2018FL | C76: (030) Life and Physical Sciences | D76: GEOL-1401 | E76: 16-week | F76: 28 | G76: 625
A77: 2018-2019 | B77: 2018FL | C77: (030) Life and Physical Sciences | D77: GEOL-1402 | E77: 16-week | F77: 2 | G77: 48
A78: 2018-2019 | B78: 2018FL | C78: (030) Life and Physical Sciences | D78: GEOL-1403 | E78: 14-week | F78: 2 | G78: 38
A79: 2018-2019 | B79: 2018FL | C79: (030) Life and Physical Sciences | D79: GEOL-1403 | E79: 16-week | F79: 29 | G79: 651
A80: 2018-2019 | B80: 2018FL | C80: (030) Life and Physical Sciences | D80: GEOL-1403 | E80: 7-week | F80: 2 | G80: 56
A81: 2018-2019 | B81: 2018FL | C81: (030) Life and Physical Sciences | D81: GEOL-1403 | E81: 8-week | F81: 7 | G81: 157
A82: 2018-2019 | B82: 2018FL | C82: (030) Life and Physical Sciences | D82: GEOL-1404 | E82: 16-week | F82: 6 | G82: 115
A83: 2018-2019 | B83: 2018FL | C83: (030) Life and Physical Sciences | D83: GEOL-1404 | E83: 7-week | F83: 2 | G83: 41
A84: 2018-2019 | B84: 2018FL | C84: (030) Life and Physical Sciences | D84: GEOL-1404 | E84: 8-week | F84: 1 | G84: 21
A85: 2018-2019 | B85: 2018FL | C85: (030) Life and Physical Sciences | D85: GEOL-1405 | E85: 16-week | F85: 3 | G85: 63
A86: 2018-2019 | B86: 2018FL | C86: (030) Life and Physical Sciences | D86: GEOL-1445 | E86: 16-week | F86: 6 | G86: 133
A87: 2018-2019 | B87: 2018FL | C87: (030) Life and Physical Sciences | D87: GEOL-1447 | E87: 16-week | F87: 1 | G87: 24
A88: 2018-2019 | B88: 2018FL | C88: (030) Life and Physical Sciences | D88: PHYS-1401 | E88: 14-week | F88: 1 | G88: 24
A89: 2018-2019 | B89: 2018FL | C89: (030) Life and Physical Sciences | D89: PHYS-1401 | E89: 16-week | F89: 12 | G89: 192
A90: 2018-2019 | B90: 2018FL | C90: (030) Life and Physical Sciences | D90: PHYS-1402 | E90: 16-week | F90: 3 | G90: 59
A91: 2018-2019 | B91: 2018FL | C91: (030) Life and Physical Sciences | D91: PHYS-1403 | E91: 16-week | F91: 6 | G91: 114
A92: 2018-2019 | B92: 2018FL | C92: (030) Life and Physical Sciences | D92: PHYS-1404 | E92: 14-week | F92: 1 | G92: 23
A93: 2018-2019 | B93: 2018FL | C93: (030) Life and Physical Sciences | D93: PHYS-1404 | E93: 16-week | F93: 3 | G93: 51
A94: 2018-2019 | B94: 2018FL | C94: (030) Life and Physical Sciences | D94: PHYS-1405 | E94: 16-week | F94: 1 | G94: 16
A95: 2018-2019 | B95: 2018FL | C95: (030) Life and Physical Sciences | D95: PHYS-1415 | E95: 16-week | F95: 7 | G95: 134
A96: 2018-2019 | B96: 2018FL | C96: (030) Life and Physical Sciences | D96: PHYS-2425 | E96: 16-week | F96: 10 | G96: 236
A97: 2018-2019 | B97: 2018FL | C97: (030) Life and Physical Sciences | D97: PHYS-2426 | E97: 16-week | F97: 4 | G97: 83
A98: 2018-2019 | B98: 2018FL | C98: (040) Language, Culture, and Philosophy | D98: ENGL-2322 | E98: 16-week | F98: 58 | G98: 1168
A99: 2018-2019 | B99: 2018FL | C99: (040) Language, Culture, and Philosophy | D99: ENGL-2323 | E99: 16-week | F99: 9 | G99: 121
A100: 2018-2019 | B100: 2018FL | C100: (040) Language, Culture, and Philosophy | D100: ENGL-2323 | E100: 8-week | F100: 1 | G100: 27
A101: 2018-2019 | B101: 2018FL | C101: (040) Language, Culture, and Philosophy | D101: ENGL-2327 | E101: 16-week | F101: 17 | G101: 344
A102: 2018-2019 | B102: 2018FL | C102: (040) Language, Culture, and Philosophy | D102: ENGL-2328 | E102: 16-week | F102: 7 | G102: 121
A103: 2018-2019 | B103: 2018FL | C103: (040) Language, Culture, and Philosophy | D103: ENGL-2328 | E103: 8-week | F103: 2 | G103: 52
A104: 2018-2019 | B104: 2018FL | C104: (040) Language, Culture, and Philosophy | D104: ENGL-2332 | E104: 16-week | F104: 10 | G104: 229
A105: 2018-2019 | B105: 2018FL | C105: (040) Language, Culture, and Philosophy | D105: ENGL-2333 | E105: 16-week | F105: 2 | G105: 25
A106: 2018-2019 | B106: 2018FL | C106: (040) Language, Culture, and Philosophy | D106: ENGL-2333 | E106: 8-week | F106: 1 | G106: 26
A107: 2018-2019 | B107: 2018FL | C107: (040) Language, Culture, and Philosophy | D107: FREN-2311 | E107: 16-week | F107: 1 | G107: 17
A108: 2018-2019 | B108: 2018FL | C108: (040) Language, Culture, and Philosophy | D108: GERM-2311 | E108: 16-week | F108: 1 | G108: 13
A109: 2018-2019 | B109: 2018FL | C109: (040) Language, Culture, and Philosophy | D109: HIST-2311 | E109: 16-week | F109: 7 | G109: 199
A110: 2018-2019 | B110: 2018FL | C110: (040) Language, Culture, and Philosophy | D110: HIST-2312 | E110: 16-week | F110: 1 | G110: 15
A111: 2018-2019 | B111: 2018FL | C111: (040) Language, Culture, and Philosophy | D111: HIST-2321 | E111: 16-week | F111: 10 | G111: 257
A112: 2018-2019 | B112: 2018FL | C112: (040) Language, Culture, and Philosophy | D112: HIST-2322 | E112: 16-week | F112: 2 | G112: 37
A113: 2018-2019 | B113: 2018FL | C113: (040) Language, Culture, and Philosophy | D113: HUMA-1301 | E113: 12-week | F113: 1 | G113: 24
A114: 2018-2019 | B114: 2018FL | C114: (040) Language, Culture, and Philosophy | D114: HUMA-1301 | E114: 14-week | F114: 2 | G114: 39
A115: 2018-2019 | B115: 2018FL | C115: (040) Language, Culture, and Philosophy | D115: HUMA-1301 | E115: 16-week | F115: 17 | G115: 413
A116: 2018-2019 | B116: 2018FL | C116: (040) Language, Culture, and Philosophy | D116: HUMA-1301 | E116: 7-week | F116: 2 | G116: 36
A117: 2018-2019 | B117: 2018FL | C117: (040) Language, Culture, and Philosophy | D117: HUMA-1301 | E117: 8-week | F117: 3 | G117: 73
A118: 2018-2019 | B118: 2018FL | C118: (040) Language, Culture, and Philosophy | D118: PHIL-1301 | E118: 14-week | F118: 7 | G118: 158
A119: 2018-2019 | B119: 2018FL | C119: (040) Language, Culture, and Philosophy | D119: PHIL-1301 | E119: 16-week | F119: 50 | G119: 1398
A120: 2018-2019 | B120: 2018FL | C120: (040) Language, Culture, and Philosophy | D120: PHIL-1301 | E120: 7-week | F120: 2 | G120: 45
A121: 2018-2019 | B121: 2018FL | C121: (040) Language, Culture, and Philosophy | D121: PHIL-1301 | E121: 8-week | F121: 9 | G121: 213
A122: 2018-2019 | B122: 2018FL | C122: (040) Language, Culture, and Philosophy | D122: PHIL-1304 | E122: 14-week | F122: 1 | G122: 14
A123: 2018-2019 | B123: 2018FL | C123: (040) Language, Culture, and Philosophy | D123: PHIL-1304 | E123: 16-week | F123: 20 | G123: 513
A124: 2018-2019 | B124: 2018FL | C124: (040) Language, Culture, and Philosophy | D124: PHIL-1304 | E124: 8-week | F124: 2 | G124: 38
A125: 2018-2019 | B125: 2018FL | C125: (040) Language, Culture, and Philosophy | D125: PHIL-2306 | E125: 16-week | F125: 13 | G125: 259
A126: 2018-2019 | B126: 2018FL | C126: (040) Language, Culture, and Philosophy | D126: PHIL-2306 | E126: 8-week | F126: 1 | G126: 18
A127: 2018-2019 | B127: 2018FL | C127: (040) Language, Culture, and Philosophy | D127: PHIL-2316 | E127: 16-week | F127: 1 | G127: 25
A128: 2018-2019 | B128: 2018FL | C128: (040) Language, Culture, and Philosophy | D128: SPAN-2311 | E128: 12-week | F128: 1 | G128: 10
A129: 2018-2019 | B129: 2018FL | C129: (040) Language, Culture, and Philosophy | D129: SPAN-2311 | E129: 14-week | F129: 1 | G129: 7
A130: 2018-2019 | B130: 2018FL | C130: (040) Language, Culture, and Philosophy | D130: SPAN-2311 | E130: 16-week | F130: 22 | G130: 390
A131: 2018-2019 | B131: 2018FL | C131: (040) Language, Culture, and Philosophy | D131: SPAN-2311 | E131: 8-week | F131: 1 | G131: 14
A132: 2018-2019 | B132: 2018FL | C132: (040) Language, Culture, and Philosophy | D132: SPAN-2312 | E132: 16-week | F132: 2 | G132: 35
A133: 2018-2019 | B133: 2018FL | C133: (040) Language, Culture, and Philosophy | D133: SPAN-2312 | E133: 8-week | F133: 2 | G133: 43
A134: 2018-2019 | B134: 2018FL | C134: (050) Creative Arts | D134: ARTS-1301 | E134: 12-week | F134: 1 | G134: 22
A135: 2018-2019 | B135: 2018FL | C135: (050) Creative Arts | D135: ARTS-1301 | E135: 14-week | F135: 11 | G135: 280
A136: 2018-2019 | B136: 2018FL | C136: (050) Creative Arts | D136: ARTS-1301 | E136: 16-week | F136: 72 | G136: 2026
A137: 2018-2019 | B137: 2018FL | C137: (050) Creative Arts | D137: ARTS-1301 | E137: 7-week | F137: 2 | G137: 39
A138: 2018-2019 | B138: 2018FL | C138: (050) Creative Arts | D138: ARTS-1301 | E138: 8-week | F138: 20 | G138: 505
A139: 2018-2019 | B139: 2018FL | C139: (050) Creative Arts | D139: ARTS-1303 | E139: 16-week | F139: 8 | G139: 241
A140: 2018-2019 | B140: 2018FL | C140: (050) Creative Arts | D140: COMM-2366 | E140: 14-week | F140: 1 | G140: 29
A141: 2018-2019 | B141: 2018FL | C141: (050) Creative Arts | D141: COMM-2366 | E141: 16-week | F141: 1 | G141: 27
A142: 2018-2019 | B142: 2018FL | C142: (050) Creative Arts | D142: DANC-2303 | E142: 14-week | F142: 1 | G142: 15
A143: 2018-2019 | B143: 2018FL | C143: (050) Creative Arts | D143: DANC-2303 | E143: 16-week | F143: 15 | G143: 323
A144: 2018-2019 | B144: 2018FL | C144: (050) Creative Arts | D144: DANC-2303 | E144: 7-week | F144: 1 | G144: 29
A145: 2018-2019 | B145: 2018FL | C145: (050) Creative Arts | D145: DANC-2303 | E145: 8-week | F145: 4 | G145: 89
A146: 2018-2019 | B146: 2018FL | C146: (050) Creative Arts | D146: DRAM-1310 | E146: 14-week | F146: 1 | G146: 22
A147: 2018-2019 | B147: 2018FL | C147: (050) Creative Arts | D147: DRAM-1310 | E147: 16-week | F147: 45 | G147: 994
A148: 2018-2019 | B148: 2018FL | C148: (050) Creative Arts | D148: DRAM-1310 | E148: 8-week | F148: 11 | G148: 286
A149: 2018-2019 | B149: 2018FL | C149: (050) Creative Arts | D149: DRAM-2366 | E149: 14-week | F149: 2 | G149: 51
A150: 2018-2019 | B150: 2018FL | C150: (050) Creative Arts | D150: DRAM-2366 | E150: 16-week | F150: 13 | G150: 292
A151: 2018-2019 | B151: 2018FL | C151: (050) Creative Arts | D151: DRAM-2366 | E151: 4-week | F151: 1 | G151: 29
A152: 2018-2019 | B152: 2018FL | C152: (050) Creative Arts | D152: HUMA-1315 | E152: 12-week | F152: 1 | G152: 17
A153: 2018-2019 | B153: 2018FL | C153: (050) Creative Arts | D153: HUMA-1315 | E153: 14-week | F153: 1 | G153: 28
A154: 2018-2019 | B154: 2018FL | C154: (050) Creative Arts | D154: HUMA-1315 | E154: 16-week | F154: 6 | G154: 136
A155: 2018-2019 | B155: 2018FL | C155: (050) Creative Arts | D155: MUSI-1306 | E155: 14-week | F155: 6 | G155: 134
A156: 2018-2019 | B156: 2018FL | C156: (050) Creative Arts | D156: MUSI-1306 | E156: 16-week | F156: 58 | G156: 1327
A157: 2018-2019 | B157: 2018FL | C157: (050) Creative Arts | D157: MUSI-1306 | E157: 4-week | F157: 1 | G157: 27
A158: 2018-2019 | B158: 2018FL | C158: (050) Creative Arts | D158: MUSI-1306 | E158: 7-week | F158: 2 | G158: 45
A159: 2018-2019 | B159: 2018FL | C159: (050) Creative Arts | D159: MUSI-1306 | E159: 8-week | F159: 9 | G159: 239
A160: 2018-2019 | B160: 2018FL | C160: (050) Creative Arts | D160: MUSI-1307 | E160: 14-week | F160: 1 | G160: 24
A161: 2018-2019 | B161: 2018FL | C161: (050) Creative Arts | D161: MUSI-1307 | E161: 16-week | F161: 1 | G161: 22
A162: 2018-2019 | B162: 2018FL | C162: (050) Creative Arts | D162: MUSI-1310 | E162: 16-week | F162: 8 | G162: 169
A163: 2018-2019 | B163: 2018FL | C163: (060) American History | D163: HIST-1301 | E163: 12-week | F163: 1 | G163: 38
A164: 2018-2019 | B164: 2018FL | C164: (060) American History | D164: HIST-1301 | E164: 14-week | F164: 15 | G164: 397
A165: 2018-2019 | B165: 2018FL | C165: (060) American History | D165: HIST-1301 | E165: 15-week | F165: 1 | G165: 23
A166: 2018-2019 | B166: 2018FL | C166: (060) American History | D166: HIST-1301 | E166: 16-week | F166: 258 | G166: 6970
A167: 2018-2019 | B167: 2018FL | C167: (060) American History | D167: HIST-1301 | E167: 4-week | F167: 3 | G167: 85
A168: 2018-2019 | B168: 2018FL | C168: (060) American History | D168: HIST-1301 | E168: 7-week | F168: 2 | G168: 17
A169: 2018-2019 | B169: 2018FL | C169: (060) American History | D169: HIST-1301 | E169: 8-week | F169: 16 | G169: 444
A170: 2018-2019 | B170: 2018FL | C170: (060) American History | D170: HIST-1302 | E170: 12-week | F170: 1 | G170: 38
A171: 2018-2019 | B171: 2018FL | C171: (060) American History | D171: HIST-1302 | E171: 14-week | F171: 3 | G171: 74
A172: 2018-2019 | B172: 2018FL | C172: (060) American History | D172: HIST-1302 | E172: 15-week | F172: 1 | G172: 10
A173: 2018-2019 | B173: 2018FL | C173: (060) American History | D173: HIST-1302 | E173: 16-week | F173: 103 | G173: 2788
A174: 2018-2019 | B174: 2018FL | C174: (060) American History | D174: HIST-1302 | E174: 4-week | F174: 2 | G174: 60
A175: 2018-2019 | B175: 2018FL | C175: (060) American History | D175: HIST-1302 | E175: 7-week | F175: 2 | G175: 50
A176: 2018-2019 | B176: 2018FL | C176: (060) American History | D176: HIST-1302 | E176: 8-week | F176: 17 | G176: 476
A177: 2018-2019 | B177: 2018FL | C177: (060) American History | D177: HIST-2301 | E177: 16-week | F177: 12 | G177: 325
A178: 2018-2019 | B178: 2018FL | C178: (060) American History | D178: HIST-2301 | E178: 8-week | F178: 2 | G178: 51
A179: 2018-2019 | B179: 2018FL | C179: (060) American History | D179: HIST-2327 | E179: 16-week | F179: 2 | G179: 31
A180: 2018-2019 | B180: 2018FL | C180: (070) Government and Political Science | D180: GOVT-2305 | E180: 12-week | F180: 2 | G180: 64
A181: 2018-2019 | B181: 2018FL | C181: (070) Government and Political Science | D181: GOVT-2305 | E181: 14-week | F181: 12 | G181: 328
A182: 2018-2019 | B182: 2018FL | C182: (070) Government and Political Science | D182: GOVT-2305 | E182: 16-week | F182: 201 | G182: 5247
A183: 2018-2019 | B183: 2018FL | C183: (070) Government and Political Science | D183: GOVT-2305 | E183: 4-week | F183: 3 | G183: 86
A184: 2018-2019 | B184: 2018FL | C184: (070) Government and Political Science | D184: GOVT-2305 | E184: 7-week | F184: 2 | G184: 27
A185: 2018-2019 | B185: 2018FL | C185: (070) Government and Political Science | D185: GOVT-2305 | E185: 8-week | F185: 21 | G185: 597
A186: 2018-2019 | B186: 2018FL | C186: (070) Government and Political Science | D186: GOVT-2306 | E186: 12-week | F186: 2 | G186: 62
A187: 2018-2019 | B187: 2018FL | C187: (070) Government and Political Science | D187: GOVT-2306 | E187: 14-week | F187: 7 | G187: 186
A188: 2018-2019 | B188: 2018FL | C188: (070) Government and Political Science | D188: GOVT-2306 | E188: 16-week | F188: 105 | G188: 3170
A189: 2018-2019 | B189: 2018FL | C189: (070) Government and Political Science | D189: GOVT-2306 | E189: 4-week | F189: 2 | G189: 55
A190: 2018-2019 | B190: 2018FL | C190: (070) Government and Political Science | D190: GOVT-2306 | E190: 7-week | F190: 2 | G190: 46
A191: 2018-2019 | B191: 2018FL | C191: (070) Government and Political Science | D191: GOVT-2306 | E191: 8-week | F191: 22 | G191: 647
A192: 2018-2019 | B192: 2018FL | C192: (080) Social and Behavioral Sciences | D192: ANTH-2346 | E192: 16-week | F192: 2 | G192: 54
A193: 2018-2019 | B193: 2018FL | C193: (080) Social and Behavioral Sciences | D193: ANTH-2346 | E193: 8-week | F193: 1 | G193: 29
A194: 2018-2019 | B194: 2018FL | C194: (080) Social and Behavioral Sciences | D194: ECON-2301 | E194: 11-week | F194: 1 | G194: 30
A195: 2018-2019 | B195: 2018FL | C195: (080) Social and Behavioral Sciences | D195: ECON-2301 | E195: 12-week | F195: 6 | G195: 162
A196: 2018-2019 | B196: 2018FL | C196: (080) Social and Behavioral Sciences | D196: ECON-2301 | E196: 14-week | F196: 6 | G196: 119
A197: 2018-2019 | B197: 2018FL | C197: (080) Social and Behavioral Sciences | D197: ECON-2301 | E197: 16-week | F197: 97 | G197: 2267
A198: 2018-2019 | B198: 2018FL | C198: (080) Social and Behavioral Sciences | D198: ECON-2301 | E198: 7-week | F198: 2 | G198: 47
A199: 2018-2019 | B199: 2018FL | C199: (080) Social and Behavioral Sciences | D199: ECON-2301 | E199: 8-week | F199: 4 | G199: 108
A200: 2018-2019 | B200: 2018FL | C200: (080) Social and Behavioral Sciences | D200: ECON-2302 | E200: 16-week | F200: 26 | G200: 669
... 2428 more rows
